Department family,Entity,Date,Expense Type,Expense area,Supplier,Transaction number,AP Amount (�)
Department of Health,NHS Sheffield CCG,30/06/2017,Hcare Srv Rec Fdtn Trust-Contract Baseline,ACUTE CHILDRENS SERVICES,SHEFFIELD CHILDRENS NHS FOUNDATION TRUST,17468144,"67,561.32"
Department of Health,NHS Sheffield CCG,30/06/2017,Cont Care-Physical Disab (65+),CHC ADULT FULLY FUNDED,ABBEYCARE NURSING,17468211,"48,177.00"
Department of Health,NHS Sheffield CCG,30/06/2017,Charges from CSU,BUSINESS INFORMATICS,NHS NORTH OF ENGLAND CSU,17468315,"30,083.00"
Department of Health,NHS Sheffield CCG,30/06/2017,Hcare Srv Rec Fdtn Trust-Contract Baseline,ACUTE COMMISSIONING,CHESTERFIELD ROYAL HOSPITAL NHS FOUNDATION TRUST,17478263,"314,338.00"
Department of Health,NHS Sheffield CCG,30/06/2017,Cont Care- Prior Year Payments,CHC ADULT FULLY FUNDED,TAPTON CARE LTD,17496233,"35,428.60"
Department of Health,NHS Sheffield CCG,30/06/2017,Cont Care-Physical Disab (65+),CHC ADULT FULLY FUNDED,BC SHEFFIELD LTD,17496248,"34,638.69"
Department of Health,NHS Sheffield CCG,30/06/2017,Hcare Srv Rec Fdtn Trust-CQUIN,ACUTE CHILDRENS SERVICES,SHEFFIELD CHILDRENS NHS FOUNDATION TRUST,17512671,"32,706.00"
Department of Health,NHS Sheffield CCG,30/06/2017,Hcare Srv Rec Fdtn Trust-CQUIN,COMMUNITY SERVICES,SHEFFIELD CHILDRENS NHS FOUNDATION TRUST,17512671,"3,728.00"
Department of Health,NHS Sheffield CCG,30/06/2017,Hcare Srv Rec Fdtn Trust-Contract Baseline,ACUTE CHILDRENS SERVICES,SHEFFIELD CHILDRENS NHS FOUNDATION TRUST,17512671,"235,977.00"
Department of Health,NHS Sheffield CCG,30/06/2017,Hcare Srv Rec Fdtn Trust-Contract Baseline,CHILD AND ADOLESCENT MENTAL HEALTH,SHEFFIELD CHILDRENS NHS FOUNDATION TRUST,17512671,"367,086.00"
Department of Health,NHS Sheffield CCG,30/06/2017,Hcare Srv Rec Fdtn Trust-Contract Baseline,COMMUNITY SERVICES,SHEFFIELD CHILDRENS NHS FOUNDATION TRUST,17512671,"298,241.00"
Department of Health,NHS Sheffield CCG,30/06/2017,Hcare Srv Rec Fdtn Trust-Contract Baseline,HIGH COST DRUGS,SHEFFIELD CHILDRENS NHS FOUNDATION TRUST,17512671,"40,649.00"
Department of Health,NHS Sheffield CCG,30/06/2017,Hcare Srv Rec Fdtn Trust-Contract Baseline,MENTAL HEALTH CONTRACTS,SHEFFIELD CHILDRENS NHS FOUNDATION TRUST,17512671,"5,277.00"
Department of Health,NHS Sheffield CCG,30/06/2017,Hcare Srv Rec Fdtn Trust-Contract Baseline,PLANNED CARE,SHEFFIELD CHILDRENS NHS FOUNDATION TRUST,17512671,"965,735.00"
Department of Health,NHS Sheffield CCG,30/06/2017,Hcare Srv Rec Fdtn Trust-Contract Baseline,SAFEGUARDING,SHEFFIELD CHILDRENS NHS FOUNDATION TRUST,17512671,"29,800.00"
Department of Health,NHS Sheffield CCG,30/06/2017,Hcare Srv Rec Fdtn Trust-Contract Baseline,URGENT CARE,SHEFFIELD CHILDRENS NHS FOUNDATION TRUST,17512671,"988,358.00"
Department of Health,NHS Sheffield CCG,30/06/2017,Hcare Srv Rec Fdtn Trust-Contract Baseline,ACUTE COMMISSIONING,SHEFFIELD TEACHING HOSPITALS NHS FOUNDATION TRUST,17512885,"26,312,884.00"
Department of Health,NHS Sheffield CCG,30/06/2017,Hcare Srv Rec Fdtn Trust-Contract Baseline,ACUTE COMMISSIONING,SHEFFIELD TEACHING HOSPITALS NHS FOUNDATION TRUST,17512912,"316,656.00"
Department of Health,NHS Sheffield CCG,30/06/2017,Hcare Srv Rec Fdtn Trust-Contract Baseline,ACUTE COMMISSIONING,SHEFFIELD TEACHING HOSPITALS NHS FOUNDATION TRUST,17512919,"1,101,688.00"
Department of Health,NHS Sheffield CCG,30/06/2017,Hcare Srv Rec Fdtn Trust-Contract Baseline,ACUTE COMMISSIONING,SHEFFIELD TEACHING HOSPITALS NHS FOUNDATION TRUST,17512930,"3,400,000.00"
Department of Health,NHS Sheffield CCG,30/06/2017,Hcare Srv Rec NHS Trust-CQUIN,AMBULANCE SERVICES,YORKSHIRE AMBULANCE SERVICE NHS TRUST,17512964,"27,566.00"
Department of Health,NHS Sheffield CCG,30/06/2017,Hcare Srv Rec NHS Trust-Contract Baseline,AMBULANCE SERVICES,YORKSHIRE AMBULANCE SERVICE NHS TRUST,17512970,"123,979.00"
Department of Health,NHS Sheffield CCG,30/06/2017,Hcare Srv Rec NHS Trust-Contract Baseline,AMBULANCE SERVICES,YORKSHIRE AMBULANCE SERVICE NHS TRUST,17512974,"1,440,139.00"
Department of Health,NHS Sheffield CCG,30/06/2017,Hcare Srv Rec NHS Trust-Contract Baseline,NHS 111,YORKSHIRE AMBULANCE SERVICE NHS TRUST,17512978,"89,944.00"
Department of Health,NHS Sheffield CCG,30/06/2017,Hcare Srv Rec NHS Trust-Contract Baseline,PATIENT TRANSPORT,YORKSHIRE AMBULANCE SERVICE NHS TRUST,17512984,"180,981.40"
Department of Health,NHS Sheffield CCG,30/06/2017,C&M-GMS IT Comm Servs -GP Practices,PRIMARY CARE IT,KIER BUSINESS SERVICES LTD,17519269,"105,622.80"
Department of Health,NHS Sheffield CCG,30/06/2017,FM Computer Contracts,BUSINESS INFORMATICS,KIER BUSINESS SERVICES LTD,17519269,"37,381.20"
Department of Health,NHS Sheffield CCG,30/06/2017,Clinical&Medical-Commercial Sector,PATIENT TRANSPORT,NORTHERN TAXIS LTD,17519287,"161,646.60"
Department of Health,NHS Sheffield CCG,30/06/2017,Hcare Srv Rec Fdtn Trust-Contract Baseline,ACUTE COMMISSIONING,DONCASTER AND BASSETLAW HOSPITALS NHS FOUNDATION TRUST,17531819,"34,787.00"
Department of Health,NHS Sheffield CCG,30/06/2017,C&M-PMS Contract Value,PRC DELEGATED CO-COMMISSIONING,AVENUE MEDICAL CENTRE SHEFFIELD,17575423,"58,545.87"
Department of Health,NHS Sheffield CCG,30/06/2017,C&M-PMS DES Minor Surgery,PRC DELEGATED CO-COMMISSIONING,AVENUE MEDICAL CENTRE SHEFFIELD,17575423,"1,115.00"
Department of Health,NHS Sheffield CCG,30/06/2017,C&M-PMS Delivery,PRC DELEGATED CO-COMMISSIONING,AVENUE MEDICAL CENTRE SHEFFIELD,17575423,905.2
Department of Health,NHS Sheffield CCG,30/06/2017,C&M-PMS Out of Hours Opt Outs,PRC DELEGATED CO-COMMISSIONING,AVENUE MEDICAL CENTRE SHEFFIELD,17575423,49.48
Department of Health,NHS Sheffield CCG,30/06/2017,C&M-PMS Prem Notional Rent,PRC DELEGATED CO-COMMISSIONING,AVENUE MEDICAL CENTRE SHEFFIELD,17575423,"5,546.67"
Department of Health,NHS Sheffield CCG,30/06/2017,C&M-PMS Prem Rates,PRC DELEGATED CO-COMMISSIONING,AVENUE MEDICAL CENTRE SHEFFIELD,17575423,875
Department of Health,NHS Sheffield CCG,30/06/2017,C&M-PMS QOF Achievement,PRC DELEGATED CO-COMMISSIONING,AVENUE MEDICAL CENTRE SHEFFIELD,17575423,"24,606.85"
Department of Health,NHS Sheffield CCG,30/06/2017,C&M-PMS QOF Aspiration,PRC DELEGATED CO-COMMISSIONING,AVENUE MEDICAL CENTRE SHEFFIELD,17575423,"6,441.78"
Department of Health,NHS Sheffield CCG,30/06/2017,C&M-PMS Contract Value,PRC DELEGATED CO-COMMISSIONING,ABBEY LANE SURGERY,17575425,"24,248.24"
Department of Health,NHS Sheffield CCG,30/06/2017,C&M-PMS DES Minor Surgery,PRC DELEGATED CO-COMMISSIONING,ABBEY LANE SURGERY,17575425,500
Department of Health,NHS Sheffield CCG,30/06/2017,C&M-PMS DES UNPLANNED ADMISSIONS,PRC DELEGATED CO-COMMISSIONING,ABBEY LANE SURGERY,17575425,"2,387.00"
Department of Health,NHS Sheffield CCG,30/06/2017,C&M-PMS Delivery,PRC DELEGATED CO-COMMISSIONING,ABBEY LANE SURGERY,17575425,769
Department of Health,NHS Sheffield CCG,30/06/2017,C&M-PMS Funding Differential Review,PRC DELEGATED CO-COMMISSIONING,ABBEY LANE SURGERY,17575425,"1,105.08"
Department of Health,NHS Sheffield CCG,30/06/2017,C&M-PMS Out of Hours Opt Outs,PRC DELEGATED CO-COMMISSIONING,ABBEY LANE SURGERY,17575425,5.98
Department of Health,NHS Sheffield CCG,30/06/2017,C&M-PMS Prem Notional Rent,PRC DELEGATED CO-COMMISSIONING,ABBEY LANE SURGERY,17575425,"2,122.92"
Department of Health,NHS Sheffield CCG,30/06/2017,C&M-PMS Prem Rates,PRC DELEGATED CO-COMMISSIONING,ABBEY LANE SURGERY,17575425,700
Department of Health,NHS Sheffield CCG,30/06/2017,C&M-PMS QOF Achievement,PRC DELEGATED CO-COMMISSIONING,ABBEY LANE SURGERY,17575425,"10,907.10"
Department of Health,NHS Sheffield CCG,30/06/2017,C&M-PMS QOF Aspiration,PRC DELEGATED CO-COMMISSIONING,ABBEY LANE SURGERY,17575425,"3,210.12"
Department of Health,NHS Sheffield CCG,30/06/2017,C&M-PMS Contract Value,PRC DELEGATED CO-COMMISSIONING,BARNSLEY ROAD SURGERY,17575427,"23,503.84"
Department of Health,NHS Sheffield CCG,30/06/2017,C&M-PMS Delivery,PRC DELEGATED CO-COMMISSIONING,BARNSLEY ROAD SURGERY,17575427,769
Department of Health,NHS Sheffield CCG,30/06/2017,C&M-PMS Funding Differential Review,PRC DELEGATED CO-COMMISSIONING,BARNSLEY ROAD SURGERY,17575427,370.25
Department of Health,NHS Sheffield CCG,30/06/2017,C&M-PMS PCO Seniority,PRC DELEGATED CO-COMMISSIONING,BARNSLEY ROAD SURGERY,17575427,"1,559.70"
Department of Health,NHS Sheffield CCG,30/06/2017,C&M-PMS Prem Notional Rent,PRC DELEGATED CO-COMMISSIONING,BARNSLEY ROAD SURGERY,17575427,"2,652.17"
Department of Health,NHS Sheffield CCG,30/06/2017,C&M-PMS Prem Rates,PRC DELEGATED CO-COMMISSIONING,BARNSLEY ROAD SURGERY,17575427,"1,259.00"
Department of Health,NHS Sheffield CCG,30/06/2017,C&M-PMS Prem Water Rates,PRC DELEGATED CO-COMMISSIONING,BARNSLEY ROAD SURGERY,17575427,139.16
Department of Health,NHS Sheffield CCG,30/06/2017,C&M-PMS QOF Achievement,PRC DELEGATED CO-COMMISSIONING,BARNSLEY ROAD SURGERY,17575427,"13,404.07"
Department of Health,NHS Sheffield CCG,30/06/2017,C&M-PMS QOF Aspiration,PRC DELEGATED CO-COMMISSIONING,BARNSLEY ROAD SURGERY,17575427,"2,500.90"
Department of Health,NHS Sheffield CCG,30/06/2017,C&M-PMS Contract Value,PRC DELEGATED CO-COMMISSIONING,BIRLEY HEALTH CENTRE,17575429,"67,102.56"
Department of Health,NHS Sheffield CCG,30/06/2017,C&M-PMS DES Learn Dsblty Hlth Chk,PRC DELEGATED CO-COMMISSIONING,BIRLEY HEALTH CENTRE,17575429,"3,016.00"
Department of Health,NHS Sheffield CCG,30/06/2017,C&M-PMS DES Minor Surgery,PRC DELEGATED CO-COMMISSIONING,BIRLEY HEALTH CENTRE,17575429,"4,470.00"
Department of Health,NHS Sheffield CCG,30/06/2017,C&M-PMS Delivery,PRC DELEGATED CO-COMMISSIONING,BIRLEY HEALTH CENTRE,17575429,905.2
Department of Health,NHS Sheffield CCG,30/06/2017,C&M-PMS Funding Differential Review,PRC DELEGATED CO-COMMISSIONING,BIRLEY HEALTH CENTRE,17575429,"2,653.00"
Department of Health,NHS Sheffield CCG,30/06/2017,C&M-PMS PCO Seniority,PRC DELEGATED CO-COMMISSIONING,BIRLEY HEALTH CENTRE,17575429,"5,436.37"
Department of Health,NHS Sheffield CCG,30/06/2017,C&M-PMS Prem Notional Rent,PRC DELEGATED CO-COMMISSIONING,BIRLEY HEALTH CENTRE,17575429,"9,699.32"
Department of Health,NHS Sheffield CCG,30/06/2017,C&M-PMS QOF Achievement,PRC DELEGATED CO-COMMISSIONING,BIRLEY HEALTH CENTRE,17575429,"36,028.85"
Department of Health,NHS Sheffield CCG,30/06/2017,C&M-PMS QOF Aspiration,PRC DELEGATED CO-COMMISSIONING,BIRLEY HEALTH CENTRE,17575429,"8,879.62"
Department of Health,NHS Sheffield CCG,30/06/2017,C&M-PMS Contract Value,PRC DELEGATED CO-COMMISSIONING,BURNCROSS SURGERY,17575431,"129,382.65"
Department of Health,NHS Sheffield CCG,30/06/2017,C&M-PMS DES Minor Surgery,PRC DELEGATED CO-COMMISSIONING,BURNCROSS SURGERY,17575431,"3,030.00"
Department of Health,NHS Sheffield CCG,30/06/2017,C&M-PMS Funding Differential Review,PRC DELEGATED CO-COMMISSIONING,BURNCROSS SURGERY,17575431,"1,648.42"
Department of Health,NHS Sheffield CCG,30/06/2017,C&M-PMS PCO Seniority,PRC DELEGATED CO-COMMISSIONING,BURNCROSS SURGERY,17575431,"4,540.87"
Department of Health,NHS Sheffield CCG,30/06/2017,C&M-PMS Prem Notional Rent,PRC DELEGATED CO-COMMISSIONING,BURNCROSS SURGERY,17575431,"14,058.33"
Department of Health,NHS Sheffield CCG,30/06/2017,C&M-PMS QOF Achievement,PRC DELEGATED CO-COMMISSIONING,BURNCROSS SURGERY,17575431,"76,962.06"
Department of Health,NHS Sheffield CCG,30/06/2017,C&M-PMS QOF Aspiration,PRC DELEGATED CO-COMMISSIONING,BURNCROSS SURGERY,17575431,"15,427.45"
Department of Health,NHS Sheffield CCG,30/06/2017,C&M-PMS Contract Value,PRC DELEGATED CO-COMMISSIONING,BURNGREAVE SURGERY,17575433,"59,625.70"
Department of Health,NHS Sheffield CCG,30/06/2017,C&M-PMS DES Minor Surgery,PRC DELEGATED CO-COMMISSIONING,BURNGREAVE SURGERY,17575433,"1,575.00"
Department of Health,NHS Sheffield CCG,30/06/2017,C&M-PMS Funding Differential Review,PRC DELEGATED CO-COMMISSIONING,BURNGREAVE SURGERY,17575433,"1,353.08"
Department of Health,NHS Sheffield CCG,30/06/2017,C&M-PMS PCO Seniority,PRC DELEGATED CO-COMMISSIONING,BURNGREAVE SURGERY,17575433,"1,792.50"
Department of Health,NHS Sheffield CCG,30/06/2017,C&M-PMS Prem Notional Rent,PRC DELEGATED CO-COMMISSIONING,BURNGREAVE SURGERY,17575433,"5,916.66"
Department of Health,NHS Sheffield CCG,30/06/2017,C&M-PMS QOF Achievement,PRC DELEGATED CO-COMMISSIONING,BURNGREAVE SURGERY,17575433,"24,830.37"
Department of Health,NHS Sheffield CCG,30/06/2017,C&M-PMS QOF Aspiration,PRC DELEGATED CO-COMMISSIONING,BURNGREAVE SURGERY,17575433,"5,148.30"
Department of Health,NHS Sheffield CCG,30/06/2017,C&M-PMS Contract Value,PRC DELEGATED CO-COMMISSIONING,DOVERCOURT SURGERY,17575438,"75,265.10"
Department of Health,NHS Sheffield CCG,30/06/2017,C&M-PMS DES Minor Surgery,PRC DELEGATED CO-COMMISSIONING,DOVERCOURT SURGERY,17575438,"1,560.00"
Department of Health,NHS Sheffield CCG,30/06/2017,C&M-PMS Funding Differential Review,PRC DELEGATED CO-COMMISSIONING,DOVERCOURT SURGERY,17575438,"3,616.08"
Department of Health,NHS Sheffield CCG,30/06/2017,C&M-PMS PCO Seniority,PRC DELEGATED CO-COMMISSIONING,DOVERCOURT SURGERY,17575438,"1,792.50"
Department of Health,NHS Sheffield CCG,30/06/2017,C&M-PMS Prem Actual Rent,PRC DELEGATED CO-COMMISSIONING,DOVERCOURT SURGERY,17575438,"12,400.00"
Department of Health,NHS Sheffield CCG,30/06/2017,C&M-PMS Prem Notional Rent,PRC DELEGATED CO-COMMISSIONING,DOVERCOURT SURGERY,17575438,"1,708.34"
Department of Health,NHS Sheffield CCG,30/06/2017,C&M-PMS QOF Achievement,PRC DELEGATED CO-COMMISSIONING,DOVERCOURT SURGERY,17575438,"38,986.33"
Department of Health,NHS Sheffield CCG,30/06/2017,C&M-PMS QOF Aspiration,PRC DELEGATED CO-COMMISSIONING,DOVERCOURT SURGERY,17575438,"7,505.03"
Department of Health,NHS Sheffield CCG,30/06/2017,C&M-PMS Contract Value,PRC DELEGATED CO-COMMISSIONING,DR MEHROTRA & PARTNER,17575440,"29,581.37"
Department of Health,NHS Sheffield CCG,30/06/2017,C&M-PMS DES Minor Surgery,PRC DELEGATED CO-COMMISSIONING,DR MEHROTRA & PARTNER,17575440,40
Department of Health,NHS Sheffield CCG,30/06/2017,C&M-PMS Delivery,PRC DELEGATED CO-COMMISSIONING,DR MEHROTRA & PARTNER,17575440,769
Department of Health,NHS Sheffield CCG,30/06/2017,C&M-PMS Funding Differential Review,PRC DELEGATED CO-COMMISSIONING,DR MEHROTRA & PARTNER,17575440,885.92
Department of Health,NHS Sheffield CCG,30/06/2017,C&M-PMS PCO Seniority,PRC DELEGATED CO-COMMISSIONING,DR MEHROTRA & PARTNER,17575440,637.24
Department of Health,NHS Sheffield CCG,30/06/2017,C&M-PMS Prem Notional Rent,PRC DELEGATED CO-COMMISSIONING,DR MEHROTRA & PARTNER,17575440,"5,157.33"
Department of Health,NHS Sheffield CCG,30/06/2017,C&M-PMS Prem Rates,PRC DELEGATED CO-COMMISSIONING,DR MEHROTRA & PARTNER,17575440,"1,322.00"
Department of Health,NHS Sheffield CCG,30/06/2017,C&M-PMS QOF Achievement,PRC DELEGATED CO-COMMISSIONING,DR MEHROTRA & PARTNER,17575440,"12,179.92"
Department of Health,NHS Sheffield CCG,30/06/2017,C&M-PMS QOF Aspiration,PRC DELEGATED CO-COMMISSIONING,DR MEHROTRA & PARTNER,17575440,"3,389.93"
Department of Health,NHS Sheffield CCG,30/06/2017,C&M-PMS Contract Value,PRC DELEGATED CO-COMMISSIONING,DR MILNER & PARTNERS,17575442,"79,724.64"
Department of Health,NHS Sheffield CCG,30/06/2017,C&M-PMS DES Minor Surgery,PRC DELEGATED CO-COMMISSIONING,DR MILNER & PARTNERS,17575442,"1,160.00"
Department of Health,NHS Sheffield CCG,30/06/2017,C&M-PMS Delivery,PRC DELEGATED CO-COMMISSIONING,DR MILNER & PARTNERS,17575442,"1,047.40"
Department of Health,NHS Sheffield CCG,30/06/2017,C&M-PMS Funding Differential Review,PRC DELEGATED CO-COMMISSIONING,DR MILNER & PARTNERS,17575442,"4,581.42"
Department of Health,NHS Sheffield CCG,30/06/2017,C&M-PMS PCO Seniority,PRC DELEGATED CO-COMMISSIONING,DR MILNER & PARTNERS,17575442,"1,682.88"
Department of Health,NHS Sheffield CCG,30/06/2017,C&M-PMS Prem Actual Rent,PRC DELEGATED CO-COMMISSIONING,DR MILNER & PARTNERS,17575442,"11,382.00"
Department of Health,NHS Sheffield CCG,30/06/2017,C&M-PMS Prem Notional Rent,PRC DELEGATED CO-COMMISSIONING,DR MILNER & PARTNERS,17575442,"4,221.58"
Department of Health,NHS Sheffield CCG,30/06/2017,C&M-PMS Prem Rates,PRC DELEGATED CO-COMMISSIONING,DR MILNER & PARTNERS,17575442,"1,921.00"
Department of Health,NHS Sheffield CCG,30/06/2017,C&M-PMS QOF Achievement,PRC DELEGATED CO-COMMISSIONING,DR MILNER & PARTNERS,17575442,"28,464.52"
Department of Health,NHS Sheffield CCG,30/06/2017,C&M-PMS QOF Aspiration,PRC DELEGATED CO-COMMISSIONING,DR MILNER & PARTNERS,17575442,"7,385.62"
Department of Health,NHS Sheffield CCG,30/06/2017,C&M-PMS Contract Value,PRC DELEGATED CO-COMMISSIONING,DUNNINC ROAD SURGERY,17575444,"25,607.70"
Department of Health,NHS Sheffield CCG,30/06/2017,C&M-PMS DES Minor Surgery,PRC DELEGATED CO-COMMISSIONING,DUNNINC ROAD SURGERY,17575444,"2,040.00"
Department of Health,NHS Sheffield CCG,30/06/2017,C&M-PMS Delivery,PRC DELEGATED CO-COMMISSIONING,DUNNINC ROAD SURGERY,17575444,"3,845.00"
Department of Health,NHS Sheffield CCG,30/06/2017,C&M-PMS Funding Differential Review,PRC DELEGATED CO-COMMISSIONING,DUNNINC ROAD SURGERY,17575444,"1,218.67"
Department of Health,NHS Sheffield CCG,30/06/2017,C&M-PMS PCO Seniority,PRC DELEGATED CO-COMMISSIONING,DUNNINC ROAD SURGERY,17575444,"2,115.59"
Department of Health,NHS Sheffield CCG,30/06/2017,C&M-PMS Prem Notional Rent,PRC DELEGATED CO-COMMISSIONING,DUNNINC ROAD SURGERY,17575444,"1,604.17"
Department of Health,NHS Sheffield CCG,30/06/2017,C&M-PMS QOF Achievement,PRC DELEGATED CO-COMMISSIONING,DUNNINC ROAD SURGERY,17575444,"13,809.44"
Department of Health,NHS Sheffield CCG,30/06/2017,C&M-PMS QOF Aspiration,PRC DELEGATED CO-COMMISSIONING,DUNNINC ROAD SURGERY,17575444,"2,548.20"
Department of Health,NHS Sheffield CCG,30/06/2017,C&M-PMS Contract Value,PRC DELEGATED CO-COMMISSIONING,DYKES HALL MEDICAL CENTRE,17575446,"77,053.55"
Department of Health,NHS Sheffield CCG,30/06/2017,C&M-PMS DES Minor Surgery,PRC DELEGATED CO-COMMISSIONING,DYKES HALL MEDICAL CENTRE,17575446,680
Department of Health,NHS Sheffield CCG,30/06/2017,C&M-PMS Delivery,PRC DELEGATED CO-COMMISSIONING,DYKES HALL MEDICAL CENTRE,17575446,"4,526.00"
Department of Health,NHS Sheffield CCG,30/06/2017,C&M-PMS Funding Differential Review,PRC DELEGATED CO-COMMISSIONING,DYKES HALL MEDICAL CENTRE,17575446,199.75
Department of Health,NHS Sheffield CCG,30/06/2017,C&M-PMS PCO Seniority,PRC DELEGATED CO-COMMISSIONING,DYKES HALL MEDICAL CENTRE,17575446,"2,651.83"
Department of Health,NHS Sheffield CCG,30/06/2017,C&M-PMS Prem Notional Rent,PRC DELEGATED CO-COMMISSIONING,DYKES HALL MEDICAL CENTRE,17575446,"5,300.83"
Department of Health,NHS Sheffield CCG,30/06/2017,C&M-PMS QOF Achievement,PRC DELEGATED CO-COMMISSIONING,DYKES HALL MEDICAL CENTRE,17575446,"37,189.94"
Department of Health,NHS Sheffield CCG,30/06/2017,C&M-PMS QOF Aspiration,PRC DELEGATED CO-COMMISSIONING,DYKES HALL MEDICAL CENTRE,17575446,"8,863.43"
Department of Health,NHS Sheffield CCG,30/06/2017,C&M-PMS Contract Value,PRC DELEGATED CO-COMMISSIONING,EAST BANK MEDICAL CENTRE,17575448,"49,414.12"
Department of Health,NHS Sheffield CCG,30/06/2017,C&M-PMS DES Minor Surgery,PRC DELEGATED CO-COMMISSIONING,EAST BANK MEDICAL CENTRE,17575448,840
Department of Health,NHS Sheffield CCG,30/06/2017,C&M-PMS Delivery,PRC DELEGATED CO-COMMISSIONING,EAST BANK MEDICAL CENTRE,17575448,"4,526.00"
Department of Health,NHS Sheffield CCG,30/06/2017,C&M-PMS Funding Differential Review,PRC DELEGATED CO-COMMISSIONING,EAST BANK MEDICAL CENTRE,17575448,"1,588.17"
Department of Health,NHS Sheffield CCG,30/06/2017,C&M-PMS PCO Seniority,PRC DELEGATED CO-COMMISSIONING,EAST BANK MEDICAL CENTRE,17575448,797.19
Department of Health,NHS Sheffield CCG,30/06/2017,C&M-PMS Prem Notional Rent,PRC DELEGATED CO-COMMISSIONING,EAST BANK MEDICAL CENTRE,17575448,"10,466.67"
Department of Health,NHS Sheffield CCG,30/06/2017,C&M-PMS Prem Rates,PRC DELEGATED CO-COMMISSIONING,EAST BANK MEDICAL CENTRE,17575448,"9,962.32"
Department of Health,NHS Sheffield CCG,30/06/2017,C&M-PMS Prem Water Rates,PRC DELEGATED CO-COMMISSIONING,EAST BANK MEDICAL CENTRE,17575448,"1,083.62"
Department of Health,NHS Sheffield CCG,30/06/2017,C&M-PMS QOF Achievement,PRC DELEGATED CO-COMMISSIONING,EAST BANK MEDICAL CENTRE,17575448,"24,419.46"
Department of Health,NHS Sheffield CCG,30/06/2017,C&M-PMS QOF Aspiration,PRC DELEGATED CO-COMMISSIONING,EAST BANK MEDICAL CENTRE,17575448,"5,086.87"
Department of Health,NHS Sheffield CCG,30/06/2017,C&M-PMS Contract Value,PRC DELEGATED CO-COMMISSIONING,FIRTH PARK SURGERY,17575450,"79,315.12"
Department of Health,NHS Sheffield CCG,30/06/2017,C&M-PMS DES Minor Surgery,PRC DELEGATED CO-COMMISSIONING,FIRTH PARK SURGERY,17575450,"1,390.00"
Department of Health,NHS Sheffield CCG,30/06/2017,C&M-PMS PCO Locum Adop/Pat/Mat,PRC DELEGATED CO-COMMISSIONING,FIRTH PARK SURGERY,17575450,"5,009.84"
Department of Health,NHS Sheffield CCG,30/06/2017,C&M-PMS PCO Seniority,PRC DELEGATED CO-COMMISSIONING,FIRTH PARK SURGERY,17575450,"2,405.46"
Department of Health,NHS Sheffield CCG,30/06/2017,C&M-PMS Prem Notional Rent,PRC DELEGATED CO-COMMISSIONING,FIRTH PARK SURGERY,17575450,"4,500.00"
Department of Health,NHS Sheffield CCG,30/06/2017,C&M-PMS Prem Rates,PRC DELEGATED CO-COMMISSIONING,FIRTH PARK SURGERY,17575450,"1,291.00"
Department of Health,NHS Sheffield CCG,30/06/2017,C&M-PMS QOF Achievement,PRC DELEGATED CO-COMMISSIONING,FIRTH PARK SURGERY,17575450,"31,159.41"
Department of Health,NHS Sheffield CCG,30/06/2017,C&M-PMS QOF Aspiration,PRC DELEGATED CO-COMMISSIONING,FIRTH PARK SURGERY,17575450,"8,194.20"
Department of Health,NHS Sheffield CCG,30/06/2017,C&M-PMS Contract Value,PRC DELEGATED CO-COMMISSIONING,FALKLAND HOUSE,17575451,"-4,461.12"
Department of Health,NHS Sheffield CCG,30/06/2017,C&M-PMS GP Statutory Levy,PRC DELEGATED CO-COMMISSIONING,FALKLAND HOUSE,17575451,-120.24
Department of Health,NHS Sheffield CCG,30/06/2017,C&M-PMS Out of Hours Opt Outs,PRC DELEGATED CO-COMMISSIONING,FALKLAND HOUSE,17575451,"-1,296.07"
Department of Health,NHS Sheffield CCG,30/06/2017,C&M-PMS Voluntary Levy,PRC DELEGATED CO-COMMISSIONING,FALKLAND HOUSE,17575451,-20.04
Department of Health,NHS Sheffield CCG,30/06/2017,C&M-PMS Contract Value,PRC DELEGATED CO-COMMISSIONING,FALKLAND HOUSE,17575452,"29,063.31"
Department of Health,NHS Sheffield CCG,30/06/2017,C&M-PMS DES Minor Surgery,PRC DELEGATED CO-COMMISSIONING,FALKLAND HOUSE,17575452,560
Department of Health,NHS Sheffield CCG,30/06/2017,C&M-PMS Delivery,PRC DELEGATED CO-COMMISSIONING,FALKLAND HOUSE,17575452,769
Department of Health,NHS Sheffield CCG,30/06/2017,C&M-PMS Funding Differential Review,PRC DELEGATED CO-COMMISSIONING,FALKLAND HOUSE,17575452,"1,255.92"
Department of Health,NHS Sheffield CCG,30/06/2017,C&M-PMS Out of Hours Opt Outs,PRC DELEGATED CO-COMMISSIONING,FALKLAND HOUSE,17575452,229.74
Department of Health,NHS Sheffield CCG,30/06/2017,C&M-PMS PCO Seniority,PRC DELEGATED CO-COMMISSIONING,FALKLAND HOUSE,17575452,848.05
Department of Health,NHS Sheffield CCG,30/06/2017,C&M-PMS Prem Notional Rent,PRC DELEGATED CO-COMMISSIONING,FALKLAND HOUSE,17575452,"1,802.08"
Department of Health,NHS Sheffield CCG,30/06/2017,C&M-PMS Prem Rates,PRC DELEGATED CO-COMMISSIONING,FALKLAND HOUSE,17575452,"1,423.51"
Department of Health,NHS Sheffield CCG,30/06/2017,C&M-PMS Prem Water Rates,PRC DELEGATED CO-COMMISSIONING,FALKLAND HOUSE,17575452,79.73
Department of Health,NHS Sheffield CCG,30/06/2017,C&M-PMS QOF Achievement,PRC DELEGATED CO-COMMISSIONING,FALKLAND HOUSE,17575452,"22,013.06"
Department of Health,NHS Sheffield CCG,30/06/2017,C&M-PMS QOF Aspiration,PRC DELEGATED CO-COMMISSIONING,FALKLAND HOUSE,17575452,"3,036.47"
Department of Health,NHS Sheffield CCG,30/06/2017,C&M-PMS Contract Value,PRC DELEGATED CO-COMMISSIONING,GLEADLESS MEDICAL CENTRE,17575454,"74,631.49"
Department of Health,NHS Sheffield CCG,30/06/2017,C&M-PMS DES Minor Surgery,PRC DELEGATED CO-COMMISSIONING,GLEADLESS MEDICAL CENTRE,17575454,440
Department of Health,NHS Sheffield CCG,30/06/2017,C&M-PMS Delivery,PRC DELEGATED CO-COMMISSIONING,GLEADLESS MEDICAL CENTRE,17575454,905.2
Department of Health,NHS Sheffield CCG,30/06/2017,C&M-PMS Funding Differential Review,PRC DELEGATED CO-COMMISSIONING,GLEADLESS MEDICAL CENTRE,17575454,"1,261.42"
Department of Health,NHS Sheffield CCG,30/06/2017,C&M-PMS PCO Seniority,PRC DELEGATED CO-COMMISSIONING,GLEADLESS MEDICAL CENTRE,17575454,"3,106.29"
Department of Health,NHS Sheffield CCG,30/06/2017,C&M-PMS Prem Notional Rent,PRC DELEGATED CO-COMMISSIONING,GLEADLESS MEDICAL CENTRE,17575454,"6,750.00"
Department of Health,NHS Sheffield CCG,30/06/2017,C&M-PMS Prem Rates,PRC DELEGATED CO-COMMISSIONING,GLEADLESS MEDICAL CENTRE,17575454,"1,250.00"
Department of Health,NHS Sheffield CCG,30/06/2017,C&M-PMS QOF Achievement,PRC DELEGATED CO-COMMISSIONING,GLEADLESS MEDICAL CENTRE,17575454,"37,503.69"
Department of Health,NHS Sheffield CCG,30/06/2017,C&M-PMS QOF Aspiration,PRC DELEGATED CO-COMMISSIONING,GLEADLESS MEDICAL CENTRE,17575454,"8,204.51"
Department of Health,NHS Sheffield CCG,30/06/2017,C&M-PMS Contract Value,PRC DELEGATED CO-COMMISSIONING,HAROLD STREET MEDICAL CENTRE,17575456,"10,868.55"
Department of Health,NHS Sheffield CCG,30/06/2017,C&M-PMS DES Learn Dsblty Hlth Chk,PRC DELEGATED CO-COMMISSIONING,HAROLD STREET MEDICAL CENTRE,17575456,116
Department of Health,NHS Sheffield CCG,30/06/2017,C&M-PMS DES Minor Surgery,PRC DELEGATED CO-COMMISSIONING,HAROLD STREET MEDICAL CENTRE,17575456,255
Department of Health,NHS Sheffield CCG,30/06/2017,C&M-PMS Delivery,PRC DELEGATED CO-COMMISSIONING,HAROLD STREET MEDICAL CENTRE,17575456,769
Department of Health,NHS Sheffield CCG,30/06/2017,C&M-PMS Funding Differential Review,PRC DELEGATED CO-COMMISSIONING,HAROLD STREET MEDICAL CENTRE,17575456,905.17
Department of Health,NHS Sheffield CCG,30/06/2017,C&M-PMS PCO Seniority,PRC DELEGATED CO-COMMISSIONING,HAROLD STREET MEDICAL CENTRE,17575456,"1,359.96"
Department of Health,NHS Sheffield CCG,30/06/2017,C&M-PMS Prem Notional Rent,PRC DELEGATED CO-COMMISSIONING,HAROLD STREET MEDICAL CENTRE,17575456,"2,337.50"
Department of Health,NHS Sheffield CCG,30/06/2017,C&M-PMS QOF Achievement,PRC DELEGATED CO-COMMISSIONING,HAROLD STREET MEDICAL CENTRE,17575456,"7,302.24"
Department of Health,NHS Sheffield CCG,30/06/2017,C&M-PMS QOF Aspiration,PRC DELEGATED CO-COMMISSIONING,HAROLD STREET MEDICAL CENTRE,17575456,"1,244.07"
Department of Health,NHS Sheffield CCG,30/06/2017,C&M-PMS Contract Value,PRC DELEGATED CO-COMMISSIONING,HACKENTHORPE MEDICAL CENTRE,17575458,"50,219.01"
Department of Health,NHS Sheffield CCG,30/06/2017,C&M-PMS DES Minor Surgery,PRC DELEGATED CO-COMMISSIONING,HACKENTHORPE MEDICAL CENTRE,17575458,"1,710.00"
Department of Health,NHS Sheffield CCG,30/06/2017,C&M-PMS Funding Differential Review,PRC DELEGATED CO-COMMISSIONING,HACKENTHORPE MEDICAL CENTRE,17575458,"2,105.58"
Department of Health,NHS Sheffield CCG,30/06/2017,C&M-PMS Out of Hours Opt Outs,PRC DELEGATED CO-COMMISSIONING,HACKENTHORPE MEDICAL CENTRE,17575458,17.7
Department of Health,NHS Sheffield CCG,30/06/2017,C&M-PMS PCO Seniority,PRC DELEGATED CO-COMMISSIONING,HACKENTHORPE MEDICAL CENTRE,17575458,"3,377.33"
Department of Health,NHS Sheffield CCG,30/06/2017,C&M-PMS Prem Notional Rent,PRC DELEGATED CO-COMMISSIONING,HACKENTHORPE MEDICAL CENTRE,17575458,"4,981.25"
Department of Health,NHS Sheffield CCG,30/06/2017,C&M-PMS QOF Achievement,PRC DELEGATED CO-COMMISSIONING,HACKENTHORPE MEDICAL CENTRE,17575458,"31,609.05"
Department of Health,NHS Sheffield CCG,30/06/2017,C&M-PMS QOF Aspiration,PRC DELEGATED CO-COMMISSIONING,HACKENTHORPE MEDICAL CENTRE,17575458,"6,731.39"
Department of Health,NHS Sheffield CCG,30/06/2017,C&M-PMS Contract Value,PRC DELEGATED CO-COMMISSIONING,JAUNTY SPRINGS HEALTH CENTRE,17575460,"31,606.20"
Department of Health,NHS Sheffield CCG,30/06/2017,C&M-PMS DES Minor Surgery,PRC DELEGATED CO-COMMISSIONING,JAUNTY SPRINGS HEALTH CENTRE,17575460,160
Department of Health,NHS Sheffield CCG,30/06/2017,C&M-PMS Funding Differential Review,PRC DELEGATED CO-COMMISSIONING,JAUNTY SPRINGS HEALTH CENTRE,17575460,448
Department of Health,NHS Sheffield CCG,30/06/2017,C&M-PMS Out of Hours Opt Outs,PRC DELEGATED CO-COMMISSIONING,JAUNTY SPRINGS HEALTH CENTRE,17575460,4.03
Department of Health,NHS Sheffield CCG,30/06/2017,C&M-PMS PCO Seniority,PRC DELEGATED CO-COMMISSIONING,JAUNTY SPRINGS HEALTH CENTRE,17575460,820.96
Department of Health,NHS Sheffield CCG,30/06/2017,C&M-PMS Prem Notional Rent,PRC DELEGATED CO-COMMISSIONING,JAUNTY SPRINGS HEALTH CENTRE,17575460,"3,208.33"
Department of Health,NHS Sheffield CCG,30/06/2017,C&M-PMS Prem Rates,PRC DELEGATED CO-COMMISSIONING,JAUNTY SPRINGS HEALTH CENTRE,17575460,570
Department of Health,NHS Sheffield CCG,30/06/2017,C&M-PMS QOF Achievement,PRC DELEGATED CO-COMMISSIONING,JAUNTY SPRINGS HEALTH CENTRE,17575460,"18,498.46"
Department of Health,NHS Sheffield CCG,30/06/2017,C&M-PMS QOF Aspiration,PRC DELEGATED CO-COMMISSIONING,JAUNTY SPRINGS HEALTH CENTRE,17575460,"4,393.31"
Department of Health,NHS Sheffield CCG,30/06/2017,C&M-PMS Contract Value,PRC DELEGATED CO-COMMISSIONING,MEADOWHEAD GROUP PRACTICE,17575462,"84,516.00"
Department of Health,NHS Sheffield CCG,30/06/2017,C&M-PMS DES Minor Surgery,PRC DELEGATED CO-COMMISSIONING,MEADOWHEAD GROUP PRACTICE,17575462,"2,615.00"
Department of Health,NHS Sheffield CCG,30/06/2017,C&M-PMS PCO Seniority,PRC DELEGATED CO-COMMISSIONING,MEADOWHEAD GROUP PRACTICE,17575462,"4,533.48"
Department of Health,NHS Sheffield CCG,30/06/2017,C&M-PMS Prem Cost Rent,PRC DELEGATED CO-COMMISSIONING,MEADOWHEAD GROUP PRACTICE,17575462,"3,647.42"
Department of Health,NHS Sheffield CCG,30/06/2017,C&M-PMS Prem Notional Rent,PRC DELEGATED CO-COMMISSIONING,MEADOWHEAD GROUP PRACTICE,17575462,"3,358.33"
Department of Health,NHS Sheffield CCG,30/06/2017,C&M-PMS Prem Rates,PRC DELEGATED CO-COMMISSIONING,MEADOWHEAD GROUP PRACTICE,17575462,"3,418.71"
Department of Health,NHS Sheffield CCG,30/06/2017,C&M-PMS QOF Achievement,PRC DELEGATED CO-COMMISSIONING,MEADOWHEAD GROUP PRACTICE,17575462,"37,887.08"
Department of Health,NHS Sheffield CCG,30/06/2017,C&M-PMS QOF Aspiration,PRC DELEGATED CO-COMMISSIONING,MEADOWHEAD GROUP PRACTICE,17575462,"10,533.01"
Department of Health,NHS Sheffield CCG,30/06/2017,C&M-PMS Contract Value,PRC DELEGATED CO-COMMISSIONING,MOSBOROUGH HEALTH CENTRE,17575465,"50,659.69"
Department of Health,NHS Sheffield CCG,30/06/2017,C&M-PMS DES Minor Surgery,PRC DELEGATED CO-COMMISSIONING,MOSBOROUGH HEALTH CENTRE,17575465,"1,480.00"
Department of Health,NHS Sheffield CCG,30/06/2017,C&M-PMS Delivery,PRC DELEGATED CO-COMMISSIONING,MOSBOROUGH HEALTH CENTRE,17575465,905.2
Department of Health,NHS Sheffield CCG,30/06/2017,C&M-PMS Funding Differential Review,PRC DELEGATED CO-COMMISSIONING,MOSBOROUGH HEALTH CENTRE,17575465,"1,253.00"
Department of Health,NHS Sheffield CCG,30/06/2017,C&M-PMS PCO Seniority,PRC DELEGATED CO-COMMISSIONING,MOSBOROUGH HEALTH CENTRE,17575465,"3,138.30"
Department of Health,NHS Sheffield CCG,30/06/2017,C&M-PMS Prem Notional Rent,PRC DELEGATED CO-COMMISSIONING,MOSBOROUGH HEALTH CENTRE,17575465,"4,091.67"
Department of Health,NHS Sheffield CCG,30/06/2017,C&M-PMS QOF Achievement,PRC DELEGATED CO-COMMISSIONING,MOSBOROUGH HEALTH CENTRE,17575465,"26,078.13"
Department of Health,NHS Sheffield CCG,30/06/2017,C&M-PMS QOF Aspiration,PRC DELEGATED CO-COMMISSIONING,MOSBOROUGH HEALTH CENTRE,17575465,"6,017.44"
Department of Health,NHS Sheffield CCG,30/06/2017,C&M-PMS Contract Value,PRC DELEGATED CO-COMMISSIONING,NETHERGREEN SURGERY,17575467,"66,989.04"
Department of Health,NHS Sheffield CCG,30/06/2017,C&M-PMS DES Minor Surgery,PRC DELEGATED CO-COMMISSIONING,NETHERGREEN SURGERY,17575467,"1,090.00"
Department of Health,NHS Sheffield CCG,30/06/2017,C&M-PMS Delivery,PRC DELEGATED CO-COMMISSIONING,NETHERGREEN SURGERY,17575467,"4,526.00"
Department of Health,NHS Sheffield CCG,30/06/2017,C&M-PMS Funding Differential Review,PRC DELEGATED CO-COMMISSIONING,NETHERGREEN SURGERY,17575467,"1,876.58"
Department of Health,NHS Sheffield CCG,30/06/2017,C&M-PMS PCO Seniority,PRC DELEGATED CO-COMMISSIONING,NETHERGREEN SURGERY,17575467,"4,825.15"
Department of Health,NHS Sheffield CCG,30/06/2017,C&M-PMS Prem Cost Rent,PRC DELEGATED CO-COMMISSIONING,NETHERGREEN SURGERY,17575467,"5,057.33"
Department of Health,NHS Sheffield CCG,30/06/2017,C&M-PMS Prem Rates,PRC DELEGATED CO-COMMISSIONING,NETHERGREEN SURGERY,17575467,"2,399.50"
Department of Health,NHS Sheffield CCG,30/06/2017,C&M-PMS QOF Achievement,PRC DELEGATED CO-COMMISSIONING,NETHERGREEN SURGERY,17575467,"34,079.65"
Department of Health,NHS Sheffield CCG,30/06/2017,C&M-PMS QOF Aspiration,PRC DELEGATED CO-COMMISSIONING,NETHERGREEN SURGERY,17575467,"6,339.79"
Department of Health,NHS Sheffield CCG,30/06/2017,C&M-PMS Contract Value,PRC DELEGATED CO-COMMISSIONING,OWLTHORPE MEDICAL CENTRE,17575469,"39,597.30"
Department of Health,NHS Sheffield CCG,30/06/2017,C&M-PMS DES Minor Surgery,PRC DELEGATED CO-COMMISSIONING,OWLTHORPE MEDICAL CENTRE,17575469,80
Department of Health,NHS Sheffield CCG,30/06/2017,C&M-PMS Delivery,PRC DELEGATED CO-COMMISSIONING,OWLTHORPE MEDICAL CENTRE,17575469,769
Department of Health,NHS Sheffield CCG,30/06/2017,C&M-PMS Funding Differential Review,PRC DELEGATED CO-COMMISSIONING,OWLTHORPE MEDICAL CENTRE,17575469,"1,499.67"
Department of Health,NHS Sheffield CCG,30/06/2017,C&M-PMS Out of Hours Opt Outs,PRC DELEGATED CO-COMMISSIONING,OWLTHORPE MEDICAL CENTRE,17575469,138.84
Department of Health,NHS Sheffield CCG,30/06/2017,C&M-PMS PCO Seniority,PRC DELEGATED CO-COMMISSIONING,OWLTHORPE MEDICAL CENTRE,17575469,862.31
Department of Health,NHS Sheffield CCG,30/06/2017,C&M-PMS Prem Actual Rent,PRC DELEGATED CO-COMMISSIONING,OWLTHORPE MEDICAL CENTRE,17575469,"7,436.33"
Department of Health,NHS Sheffield CCG,30/06/2017,C&M-PMS QOF Achievement,PRC DELEGATED CO-COMMISSIONING,OWLTHORPE MEDICAL CENTRE,17575469,"28,570.31"
Department of Health,NHS Sheffield CCG,30/06/2017,C&M-PMS QOF Aspiration,PRC DELEGATED CO-COMMISSIONING,OWLTHORPE MEDICAL CENTRE,17575469,"4,031.40"
Department of Health,NHS Sheffield CCG,30/06/2017,C&M-PMS Contract Value,PRC DELEGATED CO-COMMISSIONING,PAGE HALL MEDICAL CENTRE,17575471,"58,704.67"
Department of Health,NHS Sheffield CCG,30/06/2017,C&M-PMS DES Minor Surgery,PRC DELEGATED CO-COMMISSIONING,PAGE HALL MEDICAL CENTRE,17575471,400
Department of Health,NHS Sheffield CCG,30/06/2017,C&M-PMS Funding Differential Review,PRC DELEGATED CO-COMMISSIONING,PAGE HALL MEDICAL CENTRE,17575471,"5,391.08"
Department of Health,NHS Sheffield CCG,30/06/2017,C&M-PMS Out of Hours Opt Outs,PRC DELEGATED CO-COMMISSIONING,PAGE HALL MEDICAL CENTRE,17575471,1.08
Department of Health,NHS Sheffield CCG,30/06/2017,C&M-PMS PCO Seniority,PRC DELEGATED CO-COMMISSIONING,PAGE HALL MEDICAL CENTRE,17575471,"2,667.51"
Department of Health,NHS Sheffield CCG,30/06/2017,C&M-PMS Prem Notional Rent,PRC DELEGATED CO-COMMISSIONING,PAGE HALL MEDICAL CENTRE,17575471,"4,683.33"
Department of Health,NHS Sheffield CCG,30/06/2017,C&M-PMS Prem Rates,PRC DELEGATED CO-COMMISSIONING,PAGE HALL MEDICAL CENTRE,17575471,"1,747.39"
Department of Health,NHS Sheffield CCG,30/06/2017,C&M-PMS Prem Water Rates,PRC DELEGATED CO-COMMISSIONING,PAGE HALL MEDICAL CENTRE,17575471,281.08
Department of Health,NHS Sheffield CCG,30/06/2017,C&M-PMS QOF Achievement,PRC DELEGATED CO-COMMISSIONING,PAGE HALL MEDICAL CENTRE,17575471,"26,144.98"
Department of Health,NHS Sheffield CCG,30/06/2017,C&M-PMS QOF Aspiration,PRC DELEGATED CO-COMMISSIONING,PAGE HALL MEDICAL CENTRE,17575471,"5,102.24"
Department of Health,NHS Sheffield CCG,30/06/2017,C&M-PMS Contract Value,PRC DELEGATED CO-COMMISSIONING,PARK HEALTH CENTRE,17575473,"44,050.09"
Department of Health,NHS Sheffield CCG,30/06/2017,C&M-PMS DES Minor Surgery,PRC DELEGATED CO-COMMISSIONING,PARK HEALTH CENTRE,17575473,"1,295.00"
Department of Health,NHS Sheffield CCG,30/06/2017,C&M-PMS Delivery,PRC DELEGATED CO-COMMISSIONING,PARK HEALTH CENTRE,17575473,905.2
Department of Health,NHS Sheffield CCG,30/06/2017,C&M-PMS Funding Differential Review,PRC DELEGATED CO-COMMISSIONING,PARK HEALTH CENTRE,17575473,"3,290.17"
Department of Health,NHS Sheffield CCG,30/06/2017,C&M-PMS Out of Hours Opt Outs,PRC DELEGATED CO-COMMISSIONING,PARK HEALTH CENTRE,17575473,102.74
Department of Health,NHS Sheffield CCG,30/06/2017,C&M-PMS PCO Seniority,PRC DELEGATED CO-COMMISSIONING,PARK HEALTH CENTRE,17575473,"2,757.95"
Department of Health,NHS Sheffield CCG,30/06/2017,C&M-PMS Prem Notional Rent,PRC DELEGATED CO-COMMISSIONING,PARK HEALTH CENTRE,17575473,"6,000.00"
Department of Health,NHS Sheffield CCG,30/06/2017,C&M-PMS QOF Achievement,PRC DELEGATED CO-COMMISSIONING,PARK HEALTH CENTRE,17575473,"24,632.60"
Department of Health,NHS Sheffield CCG,30/06/2017,C&M-PMS QOF Aspiration,PRC DELEGATED CO-COMMISSIONING,PARK HEALTH CENTRE,17575473,"4,293.17"
Department of Health,NHS Sheffield CCG,30/06/2017,C&M-PMS Contract Value,PRC DELEGATED CO-COMMISSIONING,PITSMOOR SURGERY,17575475,"84,367.93"
Department of Health,NHS Sheffield CCG,30/06/2017,C&M-PMS DES Minor Surgery,PRC DELEGATED CO-COMMISSIONING,PITSMOOR SURGERY,17575475,"2,425.00"
Department of Health,NHS Sheffield CCG,30/06/2017,C&M-PMS DES UNPLANNED ADMISSIONS,PRC DELEGATED CO-COMMISSIONING,PITSMOOR SURGERY,17575475,"7,134.82"
Department of Health,NHS Sheffield CCG,30/06/2017,C&M-PMS PCO Seniority,PRC DELEGATED CO-COMMISSIONING,PITSMOOR SURGERY,17575475,"2,961.36"
Department of Health,NHS Sheffield CCG,30/06/2017,C&M-PMS Prem Notional Rent,PRC DELEGATED CO-COMMISSIONING,PITSMOOR SURGERY,17575475,"9,650.00"
Department of Health,NHS Sheffield CCG,30/06/2017,C&M-PMS QOF Achievement,PRC DELEGATED CO-COMMISSIONING,PITSMOOR SURGERY,17575475,"32,766.30"
Department of Health,NHS Sheffield CCG,30/06/2017,C&M-PMS QOF Aspiration,PRC DELEGATED CO-COMMISSIONING,PITSMOOR SURGERY,17575475,"7,463.31"
Department of Health,NHS Sheffield CCG,30/06/2017,C&M-PMS Contract Value,PRC DELEGATED CO-COMMISSIONING,PORTER BROOK MEDICAL CENTRE,17575476,"-4,348.49"
Department of Health,NHS Sheffield CCG,30/06/2017,C&M-PMS GP Statutory Levy,PRC DELEGATED CO-COMMISSIONING,PORTER BROOK MEDICAL CENTRE,17575476,-860.25
Department of Health,NHS Sheffield CCG,30/06/2017,C&M-PMS Out of Hours Opt Outs,PRC DELEGATED CO-COMMISSIONING,PORTER BROOK MEDICAL CENTRE,17575476,"-7,725.30"
Department of Health,NHS Sheffield CCG,30/06/2017,C&M-PMS Voluntary Levy,PRC DELEGATED CO-COMMISSIONING,PORTER BROOK MEDICAL CENTRE,17575476,-143.38
Department of Health,NHS Sheffield CCG,30/06/2017,C&M-PMS Contract Value,PRC DELEGATED CO-COMMISSIONING,PORTER BROOK MEDICAL CENTRE,17575477,"175,864.09"
Department of Health,NHS Sheffield CCG,30/06/2017,C&M-PMS DES Minor Surgery,PRC DELEGATED CO-COMMISSIONING,PORTER BROOK MEDICAL CENTRE,17575477,"6,550.00"
Department of Health,NHS Sheffield CCG,30/06/2017,C&M-PMS Delivery,PRC DELEGATED CO-COMMISSIONING,PORTER BROOK MEDICAL CENTRE,17575477,"1,183.60"
Department of Health,NHS Sheffield CCG,30/06/2017,C&M-PMS Funding Differential Review,PRC DELEGATED CO-COMMISSIONING,PORTER BROOK MEDICAL CENTRE,17575477,"5,112.08"
Department of Health,NHS Sheffield CCG,30/06/2017,C&M-PMS Out of Hours Opt Outs,PRC DELEGATED CO-COMMISSIONING,PORTER BROOK MEDICAL CENTRE,17575477,223.92
Department of Health,NHS Sheffield CCG,30/06/2017,C&M-PMS PCO Seniority,PRC DELEGATED CO-COMMISSIONING,PORTER BROOK MEDICAL CENTRE,17575477,"8,482.36"
Department of Health,NHS Sheffield CCG,30/06/2017,C&M-PMS Prem Actual Rent,PRC DELEGATED CO-COMMISSIONING,PORTER BROOK MEDICAL CENTRE,17575477,"1,333.33"
Department of Health,NHS Sheffield CCG,30/06/2017,C&M-PMS Prem Notional Rent,PRC DELEGATED CO-COMMISSIONING,PORTER BROOK MEDICAL CENTRE,17575477,"9,559.58"
Department of Health,NHS Sheffield CCG,30/06/2017,C&M-PMS Prem Rates,PRC DELEGATED CO-COMMISSIONING,PORTER BROOK MEDICAL CENTRE,17575477,"1,956.00"
Department of Health,NHS Sheffield CCG,30/06/2017,C&M-PMS QOF Achievement,PRC DELEGATED CO-COMMISSIONING,PORTER BROOK MEDICAL CENTRE,17575477,"42,694.96"
Department of Health,NHS Sheffield CCG,30/06/2017,C&M-PMS QOF Aspiration,PRC DELEGATED CO-COMMISSIONING,PORTER BROOK MEDICAL CENTRE,17575477,"8,899.04"
Department of Health,NHS Sheffield CCG,30/06/2017,C&M-PMS Contract Value,PRC DELEGATED CO-COMMISSIONING,RICHMOND MEDICAL CENTRE,17575479,"68,995.08"
Department of Health,NHS Sheffield CCG,30/06/2017,C&M-PMS DES Minor Surgery,PRC DELEGATED CO-COMMISSIONING,RICHMOND MEDICAL CENTRE,17575479,"1,775.00"
Department of Health,NHS Sheffield CCG,30/06/2017,C&M-PMS DES UNPLANNED ADMISSIONS,PRC DELEGATED CO-COMMISSIONING,RICHMOND MEDICAL CENTRE,17575479,"6,437.20"
Department of Health,NHS Sheffield CCG,30/06/2017,C&M-PMS Delivery,PRC DELEGATED CO-COMMISSIONING,RICHMOND MEDICAL CENTRE,17575479,905.2
Department of Health,NHS Sheffield CCG,30/06/2017,C&M-PMS Funding Differential Review,PRC DELEGATED CO-COMMISSIONING,RICHMOND MEDICAL CENTRE,17575479,"1,802.33"
Department of Health,NHS Sheffield CCG,30/06/2017,C&M-PMS PCO Seniority,PRC DELEGATED CO-COMMISSIONING,RICHMOND MEDICAL CENTRE,17575479,"2,262.25"
Department of Health,NHS Sheffield CCG,30/06/2017,C&M-PMS Prem Notional Rent,PRC DELEGATED CO-COMMISSIONING,RICHMOND MEDICAL CENTRE,17575479,"4,520.00"
Department of Health,NHS Sheffield CCG,30/06/2017,C&M-PMS Prem Rates,PRC DELEGATED CO-COMMISSIONING,RICHMOND MEDICAL CENTRE,17575479,"2,273.50"
Department of Health,NHS Sheffield CCG,30/06/2017,C&M-PMS QOF Achievement,PRC DELEGATED CO-COMMISSIONING,RICHMOND MEDICAL CENTRE,17575479,"37,674.19"
Department of Health,NHS Sheffield CCG,30/06/2017,C&M-PMS QOF Aspiration,PRC DELEGATED CO-COMMISSIONING,RICHMOND MEDICAL CENTRE,17575479,"7,754.77"
Department of Health,NHS Sheffield CCG,30/06/2017,C&M-PMS Contract Value,PRC DELEGATED CO-COMMISSIONING,SELBORNE ROAD MEDICAL CENTRE,17575481,"20,842.18"
Department of Health,NHS Sheffield CCG,30/06/2017,C&M-PMS DES Learn Dsblty Hlth Chk,PRC DELEGATED CO-COMMISSIONING,SELBORNE ROAD MEDICAL CENTRE,17575481,232
Department of Health,NHS Sheffield CCG,30/06/2017,C&M-PMS Delivery,PRC DELEGATED CO-COMMISSIONING,SELBORNE ROAD MEDICAL CENTRE,17575481,769
Department of Health,NHS Sheffield CCG,30/06/2017,C&M-PMS Funding Differential Review,PRC DELEGATED CO-COMMISSIONING,SELBORNE ROAD MEDICAL CENTRE,17575481,631.58
Department of Health,NHS Sheffield CCG,30/06/2017,C&M-PMS Out of Hours Opt Outs,PRC DELEGATED CO-COMMISSIONING,SELBORNE ROAD MEDICAL CENTRE,17575481,5.49
Department of Health,NHS Sheffield CCG,30/06/2017,C&M-PMS Prem Notional Rent,PRC DELEGATED CO-COMMISSIONING,SELBORNE ROAD MEDICAL CENTRE,17575481,"1,677.08"
Department of Health,NHS Sheffield CCG,30/06/2017,C&M-PMS Prem Rates,PRC DELEGATED CO-COMMISSIONING,SELBORNE ROAD MEDICAL CENTRE,17575481,512.25
Department of Health,NHS Sheffield CCG,30/06/2017,C&M-PMS QOF Achievement,PRC DELEGATED CO-COMMISSIONING,SELBORNE ROAD MEDICAL CENTRE,17575481,"9,706.69"
Department of Health,NHS Sheffield CCG,30/06/2017,C&M-PMS QOF Aspiration,PRC DELEGATED CO-COMMISSIONING,SELBORNE ROAD MEDICAL CENTRE,17575481,"2,351.67"
Department of Health,NHS Sheffield CCG,30/06/2017,C&M-PMS Contract Value,PRC DELEGATED CO-COMMISSIONING,RUSTLINGS ROAD MEDICAL CENTRE,17575483,"29,389.42"
Department of Health,NHS Sheffield CCG,30/06/2017,C&M-PMS Delivery,PRC DELEGATED CO-COMMISSIONING,RUSTLINGS ROAD MEDICAL CENTRE,17575483,769
Department of Health,NHS Sheffield CCG,30/06/2017,C&M-PMS Funding Differential Review,PRC DELEGATED CO-COMMISSIONING,RUSTLINGS ROAD MEDICAL CENTRE,17575483,"1,235.92"
Department of Health,NHS Sheffield CCG,30/06/2017,C&M-PMS Out of Hours Opt Outs,PRC DELEGATED CO-COMMISSIONING,RUSTLINGS ROAD MEDICAL CENTRE,17575483,24.06
Department of Health,NHS Sheffield CCG,30/06/2017,C&M-PMS PCO Seniority,PRC DELEGATED CO-COMMISSIONING,RUSTLINGS ROAD MEDICAL CENTRE,17575483,"2,043.10"
Department of Health,NHS Sheffield CCG,30/06/2017,C&M-PMS Prem Notional Rent,PRC DELEGATED CO-COMMISSIONING,RUSTLINGS ROAD MEDICAL CENTRE,17575483,"1,167.92"
Department of Health,NHS Sheffield CCG,30/06/2017,C&M-PMS QOF Achievement,PRC DELEGATED CO-COMMISSIONING,RUSTLINGS ROAD MEDICAL CENTRE,17575483,"11,818.75"
Department of Health,NHS Sheffield CCG,30/06/2017,C&M-PMS QOF Aspiration,PRC DELEGATED CO-COMMISSIONING,RUSTLINGS ROAD MEDICAL CENTRE,17575483,"2,481.56"
Department of Health,NHS Sheffield CCG,30/06/2017,C&M-PMS Contract Value,PRC DELEGATED CO-COMMISSIONING,SLOAN MEDICAL CENTRE,17575485,"98,664.77"
Department of Health,NHS Sheffield CCG,30/06/2017,C&M-PMS DES Minor Surgery,PRC DELEGATED CO-COMMISSIONING,SLOAN MEDICAL CENTRE,17575485,"2,120.00"
Department of Health,NHS Sheffield CCG,30/06/2017,C&M-PMS Delivery,PRC DELEGATED CO-COMMISSIONING,SLOAN MEDICAL CENTRE,17575485,"1,047.40"
Department of Health,NHS Sheffield CCG,30/06/2017,C&M-PMS Funding Differential Review,PRC DELEGATED CO-COMMISSIONING,SLOAN MEDICAL CENTRE,17575485,165.33
Department of Health,NHS Sheffield CCG,30/06/2017,C&M-PMS Out of Hours Opt Outs,PRC DELEGATED CO-COMMISSIONING,SLOAN MEDICAL CENTRE,17575485,57.69
Department of Health,NHS Sheffield CCG,30/06/2017,C&M-PMS PCO Seniority,PRC DELEGATED CO-COMMISSIONING,SLOAN MEDICAL CENTRE,17575485,"7,255.50"
Department of Health,NHS Sheffield CCG,30/06/2017,C&M-PMS Prem Actual Rent,PRC DELEGATED CO-COMMISSIONING,SLOAN MEDICAL CENTRE,17575485,"15,535.83"
Department of Health,NHS Sheffield CCG,30/06/2017,C&M-PMS Prem Rates,PRC DELEGATED CO-COMMISSIONING,SLOAN MEDICAL CENTRE,17575485,"2,990.00"
Department of Health,NHS Sheffield CCG,30/06/2017,C&M-PMS QOF Achievement,PRC DELEGATED CO-COMMISSIONING,SLOAN MEDICAL CENTRE,17575485,"53,165.25"
Department of Health,NHS Sheffield CCG,30/06/2017,C&M-PMS QOF Aspiration,PRC DELEGATED CO-COMMISSIONING,SLOAN MEDICAL CENTRE,17575485,"10,663.96"
Department of Health,NHS Sheffield CCG,30/06/2017,C&M-PMS Contract Value,PRC DELEGATED CO-COMMISSIONING,SOTHALL MEDICAL CENTRE,17575487,"75,844.51"
Department of Health,NHS Sheffield CCG,30/06/2017,C&M-PMS DES Minor Surgery,PRC DELEGATED CO-COMMISSIONING,SOTHALL MEDICAL CENTRE,17575487,"1,665.00"
Department of Health,NHS Sheffield CCG,30/06/2017,C&M-PMS Delivery,PRC DELEGATED CO-COMMISSIONING,SOTHALL MEDICAL CENTRE,17575487,"1,047.40"
Department of Health,NHS Sheffield CCG,30/06/2017,C&M-PMS Funding Differential Review,PRC DELEGATED CO-COMMISSIONING,SOTHALL MEDICAL CENTRE,17575487,"3,463.83"
Department of Health,NHS Sheffield CCG,30/06/2017,C&M-PMS Out of Hours Opt Outs,PRC DELEGATED CO-COMMISSIONING,SOTHALL MEDICAL CENTRE,17575487,40.3
Department of Health,NHS Sheffield CCG,30/06/2017,C&M-PMS PCO Seniority,PRC DELEGATED CO-COMMISSIONING,SOTHALL MEDICAL CENTRE,17575487,"5,925.60"
Department of Health,NHS Sheffield CCG,30/06/2017,C&M-PMS Prem Healthcentre Rent,PRC DELEGATED CO-COMMISSIONING,SOTHALL MEDICAL CENTRE,17575487,"2,953.43"
Department of Health,NHS Sheffield CCG,30/06/2017,C&M-PMS Prem Notional Rent,PRC DELEGATED CO-COMMISSIONING,SOTHALL MEDICAL CENTRE,17575487,"5,116.67"
Department of Health,NHS Sheffield CCG,30/06/2017,C&M-PMS QOF Achievement,PRC DELEGATED CO-COMMISSIONING,SOTHALL MEDICAL CENTRE,17575487,"29,752.59"
Department of Health,NHS Sheffield CCG,30/06/2017,C&M-PMS QOF Aspiration,PRC DELEGATED CO-COMMISSIONING,SOTHALL MEDICAL CENTRE,17575487,"8,821.42"
Department of Health,NHS Sheffield CCG,30/06/2017,C&M-PMS Contract Value,PRC DELEGATED CO-COMMISSIONING,SOUTHEY GREEN MEDICAL CENTRE,17575489,"27,608.12"
Department of Health,NHS Sheffield CCG,30/06/2017,C&M-PMS Funding Differential Review,PRC DELEGATED CO-COMMISSIONING,SOUTHEY GREEN MEDICAL CENTRE,17575489,127.58
Department of Health,NHS Sheffield CCG,30/06/2017,C&M-PMS PCO Seniority,PRC DELEGATED CO-COMMISSIONING,SOUTHEY GREEN MEDICAL CENTRE,17575489,"1,225.87"
Department of Health,NHS Sheffield CCG,30/06/2017,C&M-PMS Prem Notional Rent,PRC DELEGATED CO-COMMISSIONING,SOUTHEY GREEN MEDICAL CENTRE,17575489,"3,362.50"
Department of Health,NHS Sheffield CCG,30/06/2017,C&M-PMS QOF Achievement,PRC DELEGATED CO-COMMISSIONING,SOUTHEY GREEN MEDICAL CENTRE,17575489,"12,441.85"
Department of Health,NHS Sheffield CCG,30/06/2017,C&M-PMS QOF Aspiration,PRC DELEGATED CO-COMMISSIONING,SOUTHEY GREEN MEDICAL CENTRE,17575489,"2,875.40"
Department of Health,NHS Sheffield CCG,30/06/2017,C&M-PMS Contract Value,PRC DELEGATED CO-COMMISSIONING,SHEFFIELD MEDICAL CENTRE,17575491,"14,995.11"
Department of Health,NHS Sheffield CCG,30/06/2017,C&M-PMS Delivery,PRC DELEGATED CO-COMMISSIONING,SHEFFIELD MEDICAL CENTRE,17575491,769
Department of Health,NHS Sheffield CCG,30/06/2017,C&M-PMS Funding Differential Review,PRC DELEGATED CO-COMMISSIONING,SHEFFIELD MEDICAL CENTRE,17575491,651.25
Department of Health,NHS Sheffield CCG,30/06/2017,C&M-PMS PCO Seniority,PRC DELEGATED CO-COMMISSIONING,SHEFFIELD MEDICAL CENTRE,17575491,971.43
Department of Health,NHS Sheffield CCG,30/06/2017,C&M-PMS Prem Notional Rent,PRC DELEGATED CO-COMMISSIONING,SHEFFIELD MEDICAL CENTRE,17575491,"2,162.50"
Department of Health,NHS Sheffield CCG,30/06/2017,C&M-PMS Prem Rates,PRC DELEGATED CO-COMMISSIONING,SHEFFIELD MEDICAL CENTRE,17575491,701
Department of Health,NHS Sheffield CCG,30/06/2017,C&M-PMS QOF Achievement,PRC DELEGATED CO-COMMISSIONING,SHEFFIELD MEDICAL CENTRE,17575491,"7,793.56"
Department of Health,NHS Sheffield CCG,30/06/2017,C&M-PMS QOF Aspiration,PRC DELEGATED CO-COMMISSIONING,SHEFFIELD MEDICAL CENTRE,17575491,"1,616.62"
Department of Health,NHS Sheffield CCG,30/06/2017,C&M-PMS Contract Value,PRC DELEGATED CO-COMMISSIONING,UNIVERSITY HEALTH SERVICE,17575493,"156,681.85"
Department of Health,NHS Sheffield CCG,30/06/2017,C&M-PMS DES Minor Surgery,PRC DELEGATED CO-COMMISSIONING,UNIVERSITY HEALTH SERVICE,17575493,"3,740.00"
Department of Health,NHS Sheffield CCG,30/06/2017,C&M-PMS DES UNPLANNED ADMISSIONS,PRC DELEGATED CO-COMMISSIONING,UNIVERSITY HEALTH SERVICE,17575493,"22,564.08"
Department of Health,NHS Sheffield CCG,30/06/2017,C&M-PMS Out of Hours Opt Outs,PRC DELEGATED CO-COMMISSIONING,UNIVERSITY HEALTH SERVICE,17575493,774.6
Department of Health,NHS Sheffield CCG,30/06/2017,C&M-PMS PCO Seniority,PRC DELEGATED CO-COMMISSIONING,UNIVERSITY HEALTH SERVICE,17575493,"6,150.23"
Department of Health,NHS Sheffield CCG,30/06/2017,C&M-PMS Prem Notional Rent,PRC DELEGATED CO-COMMISSIONING,UNIVERSITY HEALTH SERVICE,17575493,"15,833.33"
Department of Health,NHS Sheffield CCG,30/06/2017,C&M-PMS QOF Achievement,PRC DELEGATED CO-COMMISSIONING,UNIVERSITY HEALTH SERVICE,17575493,"25,014.61"
Department of Health,NHS Sheffield CCG,30/06/2017,C&M-PMS QOF Aspiration,PRC DELEGATED CO-COMMISSIONING,UNIVERSITY HEALTH SERVICE,17575493,"3,640.26"
Department of Health,NHS Sheffield CCG,30/06/2017,C&M-PMS Contract Value,PRC DELEGATED CO-COMMISSIONING,UPWELL STREET SURGERY,17575495,"41,072.18"
Department of Health,NHS Sheffield CCG,30/06/2017,C&M-PMS DES Minor Surgery,PRC DELEGATED CO-COMMISSIONING,UPWELL STREET SURGERY,17575495,"1,285.00"
Department of Health,NHS Sheffield CCG,30/06/2017,C&M-PMS DES UNPLANNED ADMISSIONS,PRC DELEGATED CO-COMMISSIONING,UPWELL STREET SURGERY,17575495,"3,761.45"
Department of Health,NHS Sheffield CCG,30/06/2017,C&M-PMS Delivery,PRC DELEGATED CO-COMMISSIONING,UPWELL STREET SURGERY,17575495,769
Department of Health,NHS Sheffield CCG,30/06/2017,C&M-PMS Funding Differential Review,PRC DELEGATED CO-COMMISSIONING,UPWELL STREET SURGERY,17575495,"2,004.50"
Department of Health,NHS Sheffield CCG,30/06/2017,C&M-PMS Out of Hours Opt Outs,PRC DELEGATED CO-COMMISSIONING,UPWELL STREET SURGERY,17575495,6.01
Department of Health,NHS Sheffield CCG,30/06/2017,C&M-PMS PCO Seniority,PRC DELEGATED CO-COMMISSIONING,UPWELL STREET SURGERY,17575495,"3,821.79"
Department of Health,NHS Sheffield CCG,30/06/2017,C&M-PMS Prem Actual Rent,PRC DELEGATED CO-COMMISSIONING,UPWELL STREET SURGERY,17575495,"8,137.50"
Department of Health,NHS Sheffield CCG,30/06/2017,C&M-PMS Prem Rates,PRC DELEGATED CO-COMMISSIONING,UPWELL STREET SURGERY,17575495,984
Department of Health,NHS Sheffield CCG,30/06/2017,C&M-PMS QOF Achievement,PRC DELEGATED CO-COMMISSIONING,UPWELL STREET SURGERY,17575495,"19,949.52"
Department of Health,NHS Sheffield CCG,30/06/2017,C&M-PMS QOF Aspiration,PRC DELEGATED CO-COMMISSIONING,UPWELL STREET SURGERY,17575495,"4,877.64"
Department of Health,NHS Sheffield CCG,30/06/2017,C&M-PMS Contract Value,PRC DELEGATED CO-COMMISSIONING,VALLEY MEDICAL CENTRE,17575497,"83,894.81"
Department of Health,NHS Sheffield CCG,30/06/2017,C&M-PMS DES Learn Dsblty Hlth Chk,PRC DELEGATED CO-COMMISSIONING,VALLEY MEDICAL CENTRE,17575497,"2,900.00"
Department of Health,NHS Sheffield CCG,30/06/2017,C&M-PMS DES Minor Surgery,PRC DELEGATED CO-COMMISSIONING,VALLEY MEDICAL CENTRE,17575497,"2,320.00"
Department of Health,NHS Sheffield CCG,30/06/2017,C&M-PMS DES UNPLANNED ADMISSIONS,PRC DELEGATED CO-COMMISSIONING,VALLEY MEDICAL CENTRE,17575497,"7,308.07"
Department of Health,NHS Sheffield CCG,30/06/2017,C&M-PMS Delivery,PRC DELEGATED CO-COMMISSIONING,VALLEY MEDICAL CENTRE,17575497,"4,526.00"
Department of Health,NHS Sheffield CCG,30/06/2017,C&M-PMS Funding Differential Review,PRC DELEGATED CO-COMMISSIONING,VALLEY MEDICAL CENTRE,17575497,271.17
Department of Health,NHS Sheffield CCG,30/06/2017,C&M-PMS PCO Seniority,PRC DELEGATED CO-COMMISSIONING,VALLEY MEDICAL CENTRE,17575497,"6,694.16"
Department of Health,NHS Sheffield CCG,30/06/2017,C&M-PMS Prem Rates,PRC DELEGATED CO-COMMISSIONING,VALLEY MEDICAL CENTRE,17575497,"1,083.00"
Department of Health,NHS Sheffield CCG,30/06/2017,C&M-PMS QOF Achievement,PRC DELEGATED CO-COMMISSIONING,VALLEY MEDICAL CENTRE,17575497,"39,551.71"
Department of Health,NHS Sheffield CCG,30/06/2017,C&M-PMS QOF Aspiration,PRC DELEGATED CO-COMMISSIONING,VALLEY MEDICAL CENTRE,17575497,"9,125.55"
Department of Health,NHS Sheffield CCG,30/06/2017,C&M-PMS Contract Value,PRC DELEGATED CO-COMMISSIONING,WOODHOUSE HEALTH CENTRE,17575499,"104,896.99"
Department of Health,NHS Sheffield CCG,30/06/2017,C&M-PMS DES Minor Surgery,PRC DELEGATED CO-COMMISSIONING,WOODHOUSE HEALTH CENTRE,17575499,"2,920.00"
Department of Health,NHS Sheffield CCG,30/06/2017,C&M-PMS DES UNPLANNED ADMISSIONS,PRC DELEGATED CO-COMMISSIONING,WOODHOUSE HEALTH CENTRE,17575499,"9,527.98"
Department of Health,NHS Sheffield CCG,30/06/2017,C&M-PMS Funding Differential Review,PRC DELEGATED CO-COMMISSIONING,WOODHOUSE HEALTH CENTRE,17575499,"2,776.33"
Department of Health,NHS Sheffield CCG,30/06/2017,C&M-PMS Out of Hours Opt Outs,PRC DELEGATED CO-COMMISSIONING,WOODHOUSE HEALTH CENTRE,17575499,41.79
Department of Health,NHS Sheffield CCG,30/06/2017,C&M-PMS PCO Seniority,PRC DELEGATED CO-COMMISSIONING,WOODHOUSE HEALTH CENTRE,17575499,"5,436.53"
Department of Health,NHS Sheffield CCG,30/06/2017,C&M-PMS Prem Notional Rent,PRC DELEGATED CO-COMMISSIONING,WOODHOUSE HEALTH CENTRE,17575499,"6,338.58"
Department of Health,NHS Sheffield CCG,30/06/2017,C&M-PMS Prem Water Rates,PRC DELEGATED CO-COMMISSIONING,WOODHOUSE HEALTH CENTRE,17575499,399.86
Department of Health,NHS Sheffield CCG,30/06/2017,C&M-PMS QOF Achievement,PRC DELEGATED CO-COMMISSIONING,WOODHOUSE HEALTH CENTRE,17575499,"58,535.31"
Department of Health,NHS Sheffield CCG,30/06/2017,C&M-PMS QOF Aspiration,PRC DELEGATED CO-COMMISSIONING,WOODHOUSE HEALTH CENTRE,17575499,"14,743.27"
Department of Health,NHS Sheffield CCG,30/06/2017,C&M-PMS Contract Value,PRC DELEGATED CO-COMMISSIONING,WOODSEATS MEDICAL CENTRE,17575501,"72,426.60"
Department of Health,NHS Sheffield CCG,30/06/2017,C&M-PMS DES Minor Surgery,PRC DELEGATED CO-COMMISSIONING,WOODSEATS MEDICAL CENTRE,17575501,"3,475.00"
Department of Health,NHS Sheffield CCG,30/06/2017,C&M-PMS Delivery,PRC DELEGATED CO-COMMISSIONING,WOODSEATS MEDICAL CENTRE,17575501,905.2
Department of Health,NHS Sheffield CCG,30/06/2017,C&M-PMS Funding Differential Review,PRC DELEGATED CO-COMMISSIONING,WOODSEATS MEDICAL CENTRE,17575501,397.08
Department of Health,NHS Sheffield CCG,30/06/2017,C&M-PMS PCO Seniority,PRC DELEGATED CO-COMMISSIONING,WOODSEATS MEDICAL CENTRE,17575501,"3,083.28"
Department of Health,NHS Sheffield CCG,30/06/2017,C&M-PMS Prem Notional Rent,PRC DELEGATED CO-COMMISSIONING,WOODSEATS MEDICAL CENTRE,17575501,"3,578.92"
Department of Health,NHS Sheffield CCG,30/06/2017,C&M-PMS Prem Rates,PRC DELEGATED CO-COMMISSIONING,WOODSEATS MEDICAL CENTRE,17575501,"1,233.00"
Department of Health,NHS Sheffield CCG,30/06/2017,C&M-PMS QOF Achievement,PRC DELEGATED CO-COMMISSIONING,WOODSEATS MEDICAL CENTRE,17575501,"39,288.20"
Department of Health,NHS Sheffield CCG,30/06/2017,C&M-PMS QOF Aspiration,PRC DELEGATED CO-COMMISSIONING,WOODSEATS MEDICAL CENTRE,17575501,"8,124.33"
Department of Health,NHS Sheffield CCG,30/06/2017,C&M-PMS Contract Value,PRC DELEGATED CO-COMMISSIONING,WINCOBANK MEDICAL CENTRE,17575503,"65,508.87"
Department of Health,NHS Sheffield CCG,30/06/2017,C&M-PMS DES Minor Surgery,PRC DELEGATED CO-COMMISSIONING,WINCOBANK MEDICAL CENTRE,17575503,"1,400.00"
Department of Health,NHS Sheffield CCG,30/06/2017,C&M-PMS Funding Differential Review,PRC DELEGATED CO-COMMISSIONING,WINCOBANK MEDICAL CENTRE,17575503,9.92
Department of Health,NHS Sheffield CCG,30/06/2017,C&M-PMS PCO Seniority,PRC DELEGATED CO-COMMISSIONING,WINCOBANK MEDICAL CENTRE,17575503,"2,317.34"
Department of Health,NHS Sheffield CCG,30/06/2017,C&M-PMS Prem Healthcentre Rent,PRC DELEGATED CO-COMMISSIONING,WINCOBANK MEDICAL CENTRE,17575503,"40,840.62"
Department of Health,NHS Sheffield CCG,30/06/2017,C&M-PMS QOF Achievement,PRC DELEGATED CO-COMMISSIONING,WINCOBANK MEDICAL CENTRE,17575503,"30,399.92"
Department of Health,NHS Sheffield CCG,30/06/2017,C&M-PMS QOF Aspiration,PRC DELEGATED CO-COMMISSIONING,WINCOBANK MEDICAL CENTRE,17575503,"6,934.01"
Department of Health,NHS Sheffield CCG,30/06/2017,C&M-PMS Contract Value,PRC DELEGATED CO-COMMISSIONING,FOXHILL MEDICAL CENTRE SHEFFIELD,17575505,"55,899.58"
Department of Health,NHS Sheffield CCG,30/06/2017,C&M-PMS DES Minor Surgery,PRC DELEGATED CO-COMMISSIONING,FOXHILL MEDICAL CENTRE SHEFFIELD,17575505,400
Department of Health,NHS Sheffield CCG,30/06/2017,C&M-PMS Funding Differential Review,PRC DELEGATED CO-COMMISSIONING,FOXHILL MEDICAL CENTRE SHEFFIELD,17575505,"1,451.25"
Department of Health,NHS Sheffield CCG,30/06/2017,C&M-PMS PCO Seniority,PRC DELEGATED CO-COMMISSIONING,FOXHILL MEDICAL CENTRE SHEFFIELD,17575505,"3,271.95"
Department of Health,NHS Sheffield CCG,30/06/2017,C&M-PMS Prem Healthcentre Rent,PRC DELEGATED CO-COMMISSIONING,FOXHILL MEDICAL CENTRE SHEFFIELD,17575505,"45,910.32"
Department of Health,NHS Sheffield CCG,30/06/2017,C&M-PMS QOF Achievement,PRC DELEGATED CO-COMMISSIONING,FOXHILL MEDICAL CENTRE SHEFFIELD,17575505,"29,527.85"
Department of Health,NHS Sheffield CCG,30/06/2017,C&M-PMS QOF Aspiration,PRC DELEGATED CO-COMMISSIONING,FOXHILL MEDICAL CENTRE SHEFFIELD,17575505,"5,736.75"
Department of Health,NHS Sheffield CCG,30/06/2017,C&M-APMS Contract Value,PRC DELEGATED CO-COMMISSIONING,SHEFFIELD HEALTH & SOCIAL CARE NHS FOUNDATION TRUST,17577381,"29,083.30"
Department of Health,NHS Sheffield CCG,30/06/2017,C&M-APMS DES Minor Surgery,PRC DELEGATED CO-COMMISSIONING,SHEFFIELD HEALTH & SOCIAL CARE NHS FOUNDATION TRUST,17577381,240
Department of Health,NHS Sheffield CCG,30/06/2017,C&M-APMS OOH Opt Outs,PRC DELEGATED CO-COMMISSIONING,SHEFFIELD HEALTH & SOCIAL CARE NHS FOUNDATION TRUST,17577381,3.41
Department of Health,NHS Sheffield CCG,30/06/2017,C&M-PMS QOF Aspiration,PRC DELEGATED CO-COMMISSIONING,SHEFFIELD HEALTH & SOCIAL CARE NHS FOUNDATION TRUST,17577381,"1,256.00"
Department of Health,NHS Sheffield CCG,30/06/2017,Hcare Srv Rec NHS Trust-Contract Baseline,ACUTE COMMISSIONING,LEEDS TEACHING HOSPITALS NHS TRUST,17581032,"-28,896.85"
Department of Health,NHS Sheffield CCG,30/06/2017,C&M-APMS Contract Value,PRC DELEGATED CO-COMMISSIONING,SHEFFIELD HEALTH & SOCIAL CARE NHS FOUNDATION TRUST,17594022,"130,852.44"
Department of Health,NHS Sheffield CCG,30/06/2017,C&M-APMS DES Minor Surgery,PRC DELEGATED CO-COMMISSIONING,SHEFFIELD HEALTH & SOCIAL CARE NHS FOUNDATION TRUST,17594022,970
Department of Health,NHS Sheffield CCG,30/06/2017,C&M-APMS OOH Opt Outs,PRC DELEGATED CO-COMMISSIONING,SHEFFIELD HEALTH & SOCIAL CARE NHS FOUNDATION TRUST,17594022,79.54
Department of Health,NHS Sheffield CCG,30/06/2017,C&M-APMS Prem Actual Rent,PRC DELEGATED CO-COMMISSIONING,SHEFFIELD HEALTH & SOCIAL CARE NHS FOUNDATION TRUST,17594022,"72,375.47"
Department of Health,NHS Sheffield CCG,30/06/2017,C&M-APMS Prem Healthcentre Rent,PRC DELEGATED CO-COMMISSIONING,SHEFFIELD HEALTH & SOCIAL CARE NHS FOUNDATION TRUST,17594022,"635,966.74"
Department of Health,NHS Sheffield CCG,30/06/2017,C&M-APMS Prem Notional Rent,PRC DELEGATED CO-COMMISSIONING,SHEFFIELD HEALTH & SOCIAL CARE NHS FOUNDATION TRUST,17594022,"39,258.33"
Department of Health,NHS Sheffield CCG,30/06/2017,C&M-PMS QOF Achievement,PRC DELEGATED CO-COMMISSIONING,SHEFFIELD HEALTH & SOCIAL CARE NHS FOUNDATION TRUST,17594022,"50,936.01"
Department of Health,NHS Sheffield CCG,30/06/2017,C&M-PMS QOF Aspiration,PRC DELEGATED CO-COMMISSIONING,SHEFFIELD HEALTH & SOCIAL CARE NHS FOUNDATION TRUST,17594022,"12,657.74"
Department of Health,NHS Sheffield CCG,30/06/2017,C&M-PMS Contract Value,PRC DELEGATED CO-COMMISSIONING,DEEPCAR MEDICAL CENTRE,17594023,"42,669.99"
Department of Health,NHS Sheffield CCG,30/06/2017,C&M-PMS DES Minor Surgery,PRC DELEGATED CO-COMMISSIONING,DEEPCAR MEDICAL CENTRE,17594023,80
Department of Health,NHS Sheffield CCG,30/06/2017,C&M-PMS Funding Differential Review,PRC DELEGATED CO-COMMISSIONING,DEEPCAR MEDICAL CENTRE,17594023,306.08
Department of Health,NHS Sheffield CCG,30/06/2017,C&M-PMS PCO Seniority,PRC DELEGATED CO-COMMISSIONING,DEEPCAR MEDICAL CENTRE,17594023,"1,426.60"
Department of Health,NHS Sheffield CCG,30/06/2017,C&M-PMS Prem Healthcentre Rent,PRC DELEGATED CO-COMMISSIONING,DEEPCAR MEDICAL CENTRE,17594023,"26,323.25"
Department of Health,NHS Sheffield CCG,30/06/2017,C&M-PMS QOF Achievement,PRC DELEGATED CO-COMMISSIONING,DEEPCAR MEDICAL CENTRE,17594023,"21,610.62"
Department of Health,NHS Sheffield CCG,30/06/2017,C&M-PMS QOF Aspiration,PRC DELEGATED CO-COMMISSIONING,DEEPCAR MEDICAL CENTRE,17594023,"4,452.12"
Department of Health,NHS Sheffield CCG,30/06/2017,C&M-PMS Contract Value,PRC DELEGATED CO-COMMISSIONING,MANCHESTER ROAD SURGERY SHEFFIELD,17594024,"33,207.69"
Department of Health,NHS Sheffield CCG,30/06/2017,C&M-PMS DES Learn Dsblty Hlth Chk,PRC DELEGATED CO-COMMISSIONING,MANCHESTER ROAD SURGERY SHEFFIELD,17594024,580
Department of Health,NHS Sheffield CCG,30/06/2017,C&M-PMS DES Minor Surgery,PRC DELEGATED CO-COMMISSIONING,MANCHESTER ROAD SURGERY SHEFFIELD,17594024,"1,335.00"
Department of Health,NHS Sheffield CCG,30/06/2017,C&M-PMS Delivery,PRC DELEGATED CO-COMMISSIONING,MANCHESTER ROAD SURGERY SHEFFIELD,17594024,"3,845.00"
Department of Health,NHS Sheffield CCG,30/06/2017,C&M-PMS Funding Differential Review,PRC DELEGATED CO-COMMISSIONING,MANCHESTER ROAD SURGERY SHEFFIELD,17594024,446.67
Department of Health,NHS Sheffield CCG,30/06/2017,C&M-PMS PCO Seniority,PRC DELEGATED CO-COMMISSIONING,MANCHESTER ROAD SURGERY SHEFFIELD,17594024,"1,963.64"
Department of Health,NHS Sheffield CCG,30/06/2017,C&M-PMS Prem Cost Rent,PRC DELEGATED CO-COMMISSIONING,MANCHESTER ROAD SURGERY SHEFFIELD,17594024,"3,472.17"
Department of Health,NHS Sheffield CCG,30/06/2017,C&M-PMS Prem Notional Rent,PRC DELEGATED CO-COMMISSIONING,MANCHESTER ROAD SURGERY SHEFFIELD,17594024,442.92
Department of Health,NHS Sheffield CCG,30/06/2017,C&M-PMS Prem Rates,PRC DELEGATED CO-COMMISSIONING,MANCHESTER ROAD SURGERY SHEFFIELD,17594024,920
Department of Health,NHS Sheffield CCG,30/06/2017,C&M-PMS QOF Achievement,PRC DELEGATED CO-COMMISSIONING,MANCHESTER ROAD SURGERY SHEFFIELD,17594024,"19,598.34"
Department of Health,NHS Sheffield CCG,30/06/2017,C&M-PMS QOF Aspiration,PRC DELEGATED CO-COMMISSIONING,MANCHESTER ROAD SURGERY SHEFFIELD,17594024,"4,335.60"
Department of Health,NHS Sheffield CCG,30/06/2017,C&M-APMS Contract Value,PRC DELEGATED CO-COMMISSIONING,SHEFFIELD HEALTH & SOCIAL CARE NHS FOUNDATION TRUST,17594025,-68.66
Department of Health,NHS Sheffield CCG,30/06/2017,C&M-APMS OOH Opt Outs,PRC DELEGATED CO-COMMISSIONING,SHEFFIELD HEALTH & SOCIAL CARE NHS FOUNDATION TRUST,17594025,"-1,302.34"
Department of Health,NHS Sheffield CCG,30/06/2017,C&M-PMS QOF Achievement,PRC DELEGATED CO-COMMISSIONING,SHEFFIELD HEALTH & SOCIAL CARE NHS FOUNDATION TRUST,17594025,"-20,484.10"
Department of Health,NHS Sheffield CCG,30/06/2017,Hcare Srv Rec Fdtn Trust-Contract Baseline,ACUTE COMMISSIONING,ROTHERHAM NHS FOUNDATION TRUST,17608321,"429,401.00"
Department of Health,NHS Sheffield CCG,30/06/2017,Hcare Srv Rec Fdtn Trust-Contract Baseline,ACUTE COMMISSIONING,BARNSLEY HOSPITAL NHS FOUNDATION TRUST,17608341,"72,098.00"
Department of Health,NHS Sheffield CCG,30/06/2017,Cont Care- Prior Year Payments,CHC ADULT FULLY FUNDED,CHC RETRO,17608384,"148,243.96"
Department of Health,NHS Sheffield CCG,30/06/2017,Cont Care- Prior Year Payments,ADULT JOINT FUNDED CONTINUING CARE,SHEFFIELD CITY COUNCIL,17608420,"66,485.21"
Department of Health,NHS Sheffield CCG,30/06/2017,Clinical&Medical-Independent Sector,ACUTE COMMISSIONING,BMI HEALTHCARE COLLECTIONS,17608428,"77,530.74"
Department of Health,NHS Sheffield CCG,30/06/2017,Clinical&Medical-Independent Sector,ACUTE COMMISSIONING,CLAREMONT HOSPITAL,17608631,"78,290.00"
Department of Health,NHS Sheffield CCG,30/06/2017,Cont Care-Physical Disab (<65),CHC ADULT FULLY FUNDED,FAIRWINDS HEALTH CARE LTD,17608643,"54,362.58"
Department of Health,NHS Sheffield CCG,30/06/2017,Cont Care-Physical Disab (<65),CHC ADULT FULLY FUNDED,LOXLEY HEALTH CARE LTD,17608650,"72,652.63"
Department of Health,NHS Sheffield CCG,30/06/2017,Cont Care-Physical Disab (<65),CHC ADULT FULLY FUNDED,WILLOWBECK HEALTH CARE LTD,17608655,"186,877.07"
Department of Health,NHS Sheffield CCG,30/06/2017,Cont Care-Physical Disab (<65),CHC ADULT FULLY FUNDED,SOUTH YORKSHIRE HOUSING ASSOCIATION LTD,17608665,"76,147.08"
Department of Health,NHS Sheffield CCG,30/06/2017,Clinical&Medical-Othe Public Sector,COMMUNITY SERVICES,SHEFFIELD CITY COUNCIL,17608679,"21,831.00"
Department of Health,NHS Sheffield CCG,30/06/2017,Clinical&Medical-Othe Public Sector,MENTAL HEALTH SERVICES - COLLABORATIVE COMMISSIONING,SHEFFIELD CITY COUNCIL,17608679,"16,919.00"
Department of Health,NHS Sheffield CCG,30/06/2017,Clinical&Medical-Othe Public Sector,REABLEMENT,SHEFFIELD CITY COUNCIL,17608679,"160,417.00"
Department of Health,NHS Sheffield CCG,30/06/2017,Clinical&Medical-Othe Public Sector,SAFEGUARDING,SHEFFIELD CITY COUNCIL,17608679,"15,324.00"
Department of Health,NHS Sheffield CCG,30/06/2017,Soc Care-Joint H&C Teams/Working,INTERMEDIATE CARE,SHEFFIELD CITY COUNCIL,17608679,"88,060.00"
Department of Health,NHS Sheffield CCG,30/06/2017,Soc Care-Learn Disab Servs,LEARNING DIFFICULTIES,SHEFFIELD CITY COUNCIL,17608679,"166,667.00"
Department of Health,NHS Sheffield CCG,30/06/2017,Soc Care-Other Soc Care,COMMUNITY SERVICES,SHEFFIELD CITY COUNCIL,17608679,"1,467,750.00"
Department of Health,NHS Sheffield CCG,30/06/2017,Soc Care-Re-ablement services,REABLEMENT,SHEFFIELD CITY COUNCIL,17608679,"63,387.00"
Department of Health,NHS Sheffield CCG,30/06/2017,Soc Care-Support Prim Care,COMMUNITY SERVICES,SHEFFIELD CITY COUNCIL,17608679,"41,667.00"
Department of Health,NHS Sheffield CCG,30/06/2017,Cont Care-Physical Disab (<65),CHC ADULT FULLY FUNDED,LONGLEY HEALTH CARE LTD,17608695,"54,402.79"
Department of Health,NHS Sheffield CCG,30/06/2017,Cont Care-Physical Disab (<65),CHC ADULT FULLY FUNDED,NEVILLE HEALTH CARE LTD,17608703,"55,718.96"
Department of Health,NHS Sheffield CCG,30/06/2017,C&M-GMS LES Translation Fees,INTERPRETING SERVICES,LANGUAGELINE SOLUTIONS,17608770,"76,824.22"
Department of Health,NHS Sheffield CCG,30/06/2017,Clinical&Medical-Independent Sector,ACUTE COMMISSIONING,ONEHEALTH GROUP,17608782,"90,000.00"
Department of Health,NHS Sheffield CCG,30/06/2017,Hcare Srv Rec Fdtn Trust-Contract Baseline,MENTAL HEALTH CONTRACTS,SHEFFIELD HEALTH & SOCIAL CARE NHS FOUNDATION TRUST,17608830,"6,013,427.33"
Department of Health,NHS Sheffield CCG,30/06/2017,C&M-GMS GP Training Costs,LOCAL ENHANCED SERVICES,BLUE STREAM ACADEMY,17608899,"39,999.99"
Department of Health,NHS Sheffield CCG,30/06/2017,C&M-OES Childrens Schemes,LOCAL ENHANCED SERVICES,PRIMARY EYECARE (SHEFFIELD) LTD,17608936,"3,575.00"
Department of Health,NHS Sheffield CCG,30/06/2017,C&M-OES Glaucoma,LOCAL ENHANCED SERVICES,PRIMARY EYECARE (SHEFFIELD) LTD,17608936,875
Department of Health,NHS Sheffield CCG,30/06/2017,C&M-OES Intra-ocular Ocular Hypertn,LOCAL ENHANCED SERVICES,PRIMARY EYECARE (SHEFFIELD) LTD,17608936,860
Department of Health,NHS Sheffield CCG,30/06/2017,C&M-OES PEARS,LOCAL ENHANCED SERVICES,PRIMARY EYECARE (SHEFFIELD) LTD,17608936,"22,650.00"
Department of Health,NHS Sheffield CCG,30/06/2017,Hcare Srv Rec NHS Trust-Non Contract,NCAS/OATS,NORTHUMBERLAND TYNE AND WEAR NHS FOUNDATION TRUST,17633528,"72,330.00"
Department of Health,NHS Sheffield CCG,30/06/2017,Hcare Srv Rec NHS Trust-Non Contract,NCAS/OATS,NORTHUMBERLAND TYNE AND WEAR NHS FOUNDATION TRUST,17633624,"74,741.00"
Department of Health,NHS Sheffield CCG,30/06/2017,Clinical&Medical-Independent Sector,ACUTE COMMISSIONING,BMI HEALTHCARE COLLECTIONS,17633652,"71,526.34"
Department of Health,NHS Sheffield CCG,30/06/2017,Cont Care-Funded Nursing Care Allow,FUNDED NURSING CARE,ROSEBERRY CARE CENTRES,17633750,"25,680.24"
Department of Health,NHS Sheffield CCG,30/06/2017,Cont Care-Physical Disab (<65),CHC ADULT FULLY FUNDED,ROSEBERRY CARE CENTRES,17633831,"29,625.38"
Department of Health,NHS Sheffield CCG,30/06/2017,Cont Care-Physical Disab (<65),CHC ADULT FULLY FUNDED,SEVEN HILLS NURSING HOME,17633841,"44,958.64"
Department of Health,NHS Sheffield CCG,30/06/2017,Cont Care-Physical Disab (<65),CHC ADULT FULLY FUNDED,HORIZON CARE HOMES LTD,17633861,"43,516.17"
Department of Health,NHS Sheffield CCG,30/06/2017,Cont Care-Physical Disab (<65),CHC ADULT FULLY FUNDED,ROSEBERRY CARE CENTRES,17633878,"36,123.70"
Department of Health,NHS Sheffield CCG,30/06/2017,Cont Care-Funded Nursing Care Allow,FUNDED NURSING CARE,COUNTRY COURT CARE LTD,17633886,"33,003.50"
Department of Health,NHS Sheffield CCG,30/06/2017,Cont Care-Physical Disab (<65),CHC ADULT FULLY FUNDED,HC ONE LTD,17633904,"26,327.10"
Department of Health,NHS Sheffield CCG,30/06/2017,Hcare Srv Rec Fdtn Trust-Contract Baseline,MENTAL HEALTH CONTRACTS,SHEFFIELD HEALTH & SOCIAL CARE NHS FOUNDATION TRUST,17633920,"43,493.80"
Department of Health,NHS Sheffield CCG,30/06/2017,Hcare Srv Rec Fdtn Trust-Contract Baseline,MENTAL HEALTH CONTRACTS,SHEFFIELD HEALTH & SOCIAL CARE NHS FOUNDATION TRUST,17633921,"43,493.80"
Department of Health,NHS Sheffield CCG,30/06/2017,Cont Care-Funded Nursing Care Allow,FUNDED NURSING CARE,ROSEBERRY CARE CENTRES,17633936,"37,456.45"
Department of Health,NHS Sheffield CCG,30/06/2017,Cont Care-Physical Disab (<65),CHC ADULT FULLY FUNDED,HORIZON CARE HOMES LTD,17633944,"40,865.84"
Department of Health,NHS Sheffield CCG,30/06/2017,Hcare Srv Rec Fdtn Trust-Contract Baseline,MENTAL HEALTH CONTRACTS,SHEFFIELD HEALTH & SOCIAL CARE NHS FOUNDATION TRUST,17633958,"43,493.80"
Department of Health,NHS Sheffield CCG,30/06/2017,Hcare Srv Rec Fdtn Trust-Contract Baseline,ACUTE COMMISSIONING,CHESTERFIELD ROYAL HOSPITAL NHS FOUNDATION TRUST,17646485,"273,318.00"
Department of Health,NHS Sheffield CCG,30/06/2017,Cont Care-Foundation Trust,CHC ADULT FULLY FUNDED,SHEFFIELD HEALTH & SOCIAL CARE NHS FOUNDATION TRUST,17664122,"249,977.83"
Department of Health,NHS Sheffield CCG,30/06/2017,Cont Care-Foundation Trust,CHC ADULT FULLY FUNDED,SHEFFIELD HEALTH & SOCIAL CARE NHS FOUNDATION TRUST,17664132,"249,977.83"
Department of Health,NHS Sheffield CCG,30/06/2017,Cont Care-Physical Disab (65+),CHC ADULT FULLY FUNDED,SHEFFIELD CITY COUNCIL,17664153,"734,686.39"
Department of Health,NHS Sheffield CCG,30/06/2017,Cont Care-Foundation Trust,CHC ADULT FULLY FUNDED,SHEFFIELD HEALTH & SOCIAL CARE NHS FOUNDATION TRUST,17664174,"249,977.83"
Department of Health,NHS Sheffield CCG,30/06/2017,Cont Care- Adult 100% Fully Funded,CHC ADULT FULLY FUNDED,SOUTH YORKSHIRE HOUSING ASSOCIATION LTD,17664205,"103,949.00"
Department of Health,NHS Sheffield CCG,30/06/2017,Cont Care- Adult 100% Fully Funded,CHC ADULT FULLY FUNDED,SOUTH YORKSHIRE HOUSING ASSOCIATION LTD,17664219,"25,000.00"
Department of Health,NHS Sheffield CCG,30/06/2017,Clinical&Medical-Independent Sector,MENTAL HEALTH CONTRACTS,SOUTH YORKSHIRE HOUSING ASSOCIATION LTD,17664228,"34,435.00"
Department of Health,NHS Sheffield CCG,30/06/2017,Clinical&Medical-Independent Sector,MENTAL HEALTH CONTRACTS,SUSASH GB LTD T/A EAGLE HOUSE,17664241,"30,092.00"
Department of Health,NHS Sheffield CCG,30/06/2017,C&M-GMS LES Basket of Procedures,LOCAL ENHANCED SERVICES,PRIMARY CARE SHEFFIELD LTD,17706405,"40,030.84"
Department of Health,NHS Sheffield CCG,30/06/2017,Clinical&Medical-Independent Sector,ACUTE COMMISSIONING,ONEHEALTH GROUP,17737425,"25,177.93"
Department of Health,NHS Sheffield CCG,30/06/2017,Hcare Srv Rec NHS Trust-Contract Baseline,NHS 111,YORKSHIRE AMBULANCE SERVICE NHS TRUST,17752423,"48,390.00"
Department of Health,NHS Sheffield CCG,30/06/2017,Clinical&Medical-Commercial Sector,PATIENT TRANSPORT,ARRIVA TRANSPORT SOLUTIONS,17752506,"99,965.00"
Department of Health,NHS Sheffield CCG,30/06/2017,C&M-GMS Cost of Drugs -Prescribing,LOCAL ENHANCED SERVICES,BASLOW ROAD & SHOREHAM STREET SURGERIES,17789576,562.82
Department of Health,NHS Sheffield CCG,30/06/2017,C&M-GMS DES Extended Hours Access,PRC DELEGATED CO-COMMISSIONING,BASLOW ROAD & SHOREHAM STREET SURGERIES,17789576,"5,949.38"
Department of Health,NHS Sheffield CCG,30/06/2017,C&M-GMS Global Sum,PRC DELEGATED CO-COMMISSIONING,BASLOW ROAD & SHOREHAM STREET SURGERIES,17789576,"93,243.04"
Department of Health,NHS Sheffield CCG,30/06/2017,C&M-GMS MPIG Correction Factor,PRC DELEGATED CO-COMMISSIONING,BASLOW ROAD & SHOREHAM STREET SURGERIES,17789576,438.64
Department of Health,NHS Sheffield CCG,30/06/2017,C&M-GMS PCO Seniority,PRC DELEGATED CO-COMMISSIONING,BASLOW ROAD & SHOREHAM STREET SURGERIES,17789576,"3,366.59"
Department of Health,NHS Sheffield CCG,30/06/2017,C&M-GMS Prem Notional Rent,PRC DELEGATED CO-COMMISSIONING,BASLOW ROAD & SHOREHAM STREET SURGERIES,17789576,"8,511.25"
Department of Health,NHS Sheffield CCG,30/06/2017,C&M-GMS Prem Rates,PRC DELEGATED CO-COMMISSIONING,BASLOW ROAD & SHOREHAM STREET SURGERIES,17789576,"2,062.00"
Department of Health,NHS Sheffield CCG,30/06/2017,C&M-GMS Prof Fees Prescribing,PRC DELEGATED CO-COMMISSIONING,BASLOW ROAD & SHOREHAM STREET SURGERIES,17789576,69.41
Department of Health,NHS Sheffield CCG,30/06/2017,C&M-GMS QOF Achievement,PRC DELEGATED CO-COMMISSIONING,BASLOW ROAD & SHOREHAM STREET SURGERIES,17789576,"48,918.65"
Department of Health,NHS Sheffield CCG,30/06/2017,C&M-GMS QOF Aspiration,PRC DELEGATED CO-COMMISSIONING,BASLOW ROAD & SHOREHAM STREET SURGERIES,17789576,"10,284.12"
Department of Health,NHS Sheffield CCG,30/06/2017,C&M-GMS Cost of Drugs -Prescribing,LOCAL ENHANCED SERVICES,BUCHANAN ROAD SURGERY,17789578,88.38
Department of Health,NHS Sheffield CCG,30/06/2017,C&M-GMS Global Sum,PRC DELEGATED CO-COMMISSIONING,BUCHANAN ROAD SURGERY,17789578,"34,872.95"
Department of Health,NHS Sheffield CCG,30/06/2017,C&M-GMS MPIG Correction Factor,PRC DELEGATED CO-COMMISSIONING,BUCHANAN ROAD SURGERY,17789578,"1,965.76"
Department of Health,NHS Sheffield CCG,30/06/2017,C&M-GMS PCO Seniority,PRC DELEGATED CO-COMMISSIONING,BUCHANAN ROAD SURGERY,17789578,673.12
Department of Health,NHS Sheffield CCG,30/06/2017,C&M-GMS Prem Notional Rent,PRC DELEGATED CO-COMMISSIONING,BUCHANAN ROAD SURGERY,17789578,"2,595.83"
Department of Health,NHS Sheffield CCG,30/06/2017,C&M-GMS Prem Rates,PRC DELEGATED CO-COMMISSIONING,BUCHANAN ROAD SURGERY,17789578,839
Department of Health,NHS Sheffield CCG,30/06/2017,C&M-GMS Prof Fees Prescribing,PRC DELEGATED CO-COMMISSIONING,BUCHANAN ROAD SURGERY,17789578,30.08
Department of Health,NHS Sheffield CCG,30/06/2017,C&M-GMS QOF Achievement,PRC DELEGATED CO-COMMISSIONING,BUCHANAN ROAD SURGERY,17789578,"15,537.70"
Department of Health,NHS Sheffield CCG,30/06/2017,C&M-GMS QOF Aspiration,PRC DELEGATED CO-COMMISSIONING,BUCHANAN ROAD SURGERY,17789578,"4,538.47"
Department of Health,NHS Sheffield CCG,30/06/2017,C&M-GMS Cost of Drugs -Prescribing,LOCAL ENHANCED SERVICES,BROOMHILL SURGERY,17789582,"2,453.35"
Department of Health,NHS Sheffield CCG,30/06/2017,C&M-GMS DES Extended Hours Access,PRC DELEGATED CO-COMMISSIONING,BROOMHILL SURGERY,17789582,"4,512.03"
Department of Health,NHS Sheffield CCG,30/06/2017,C&M-GMS Global Sum,PRC DELEGATED CO-COMMISSIONING,BROOMHILL SURGERY,17789582,"59,851.08"
Department of Health,NHS Sheffield CCG,30/06/2017,C&M-GMS MPIG Correction Factor,PRC DELEGATED CO-COMMISSIONING,BROOMHILL SURGERY,17789582,753.01
Department of Health,NHS Sheffield CCG,30/06/2017,C&M-GMS PCO Locum Adop/Pat/Mat,PRC DELEGATED CO-COMMISSIONING,BROOMHILL SURGERY,17789582,"4,348.27"
Department of Health,NHS Sheffield CCG,30/06/2017,C&M-GMS PCO Seniority,PRC DELEGATED CO-COMMISSIONING,BROOMHILL SURGERY,17789582,"4,492.59"
Department of Health,NHS Sheffield CCG,30/06/2017,C&M-GMS Prem Cost Rent,PRC DELEGATED CO-COMMISSIONING,BROOMHILL SURGERY,17789582,"3,380.00"
Department of Health,NHS Sheffield CCG,30/06/2017,C&M-GMS Prem Notional Rent,PRC DELEGATED CO-COMMISSIONING,BROOMHILL SURGERY,17789582,"2,541.67"
Department of Health,NHS Sheffield CCG,30/06/2017,C&M-GMS Prem Rates,PRC DELEGATED CO-COMMISSIONING,BROOMHILL SURGERY,17789582,"1,794.00"
Department of Health,NHS Sheffield CCG,30/06/2017,C&M-GMS Prof Fees Prescribing,PRC DELEGATED CO-COMMISSIONING,BROOMHILL SURGERY,17789582,124.96
Department of Health,NHS Sheffield CCG,30/06/2017,C&M-GMS QOF Aspiration,PRC DELEGATED CO-COMMISSIONING,BROOMHILL SURGERY,17789582,"6,516.86"
Department of Health,NHS Sheffield CCG,30/06/2017,C&M-GMS Cost of Drugs -Prescribing,LOCAL ENHANCED SERVICES,CHARNOCK HEALTH PRIMARY CARE CENTRE,17789584,608.84
Department of Health,NHS Sheffield CCG,30/06/2017,C&M-GMS DES Extended Hours Access,PRC DELEGATED CO-COMMISSIONING,CHARNOCK HEALTH PRIMARY CARE CENTRE,17789584,"2,472.38"
Department of Health,NHS Sheffield CCG,30/06/2017,C&M-GMS DES UNPLANNED ADMISSIONS,PRC DELEGATED CO-COMMISSIONING,CHARNOCK HEALTH PRIMARY CARE CENTRE,17789584,"4,001.69"
Department of Health,NHS Sheffield CCG,30/06/2017,C&M-GMS Global Sum,PRC DELEGATED CO-COMMISSIONING,CHARNOCK HEALTH PRIMARY CARE CENTRE,17789584,"37,836.60"
Department of Health,NHS Sheffield CCG,30/06/2017,C&M-GMS MPIG Correction Factor,PRC DELEGATED CO-COMMISSIONING,CHARNOCK HEALTH PRIMARY CARE CENTRE,17789584,619.87
Department of Health,NHS Sheffield CCG,30/06/2017,C&M-GMS PCO Other,PRC DELEGATED CO-COMMISSIONING,CHARNOCK HEALTH PRIMARY CARE CENTRE,17789584,452.6
Department of Health,NHS Sheffield CCG,30/06/2017,C&M-GMS PCO Seniority,PRC DELEGATED CO-COMMISSIONING,CHARNOCK HEALTH PRIMARY CARE CENTRE,17789584,"1,976.83"
Department of Health,NHS Sheffield CCG,30/06/2017,C&M-GMS Prem Notional Rent,PRC DELEGATED CO-COMMISSIONING,CHARNOCK HEALTH PRIMARY CARE CENTRE,17789584,305
Department of Health,NHS Sheffield CCG,30/06/2017,C&M-GMS Prem Rates,PRC DELEGATED CO-COMMISSIONING,CHARNOCK HEALTH PRIMARY CARE CENTRE,17789584,"1,111.00"
Department of Health,NHS Sheffield CCG,30/06/2017,C&M-GMS Prem Water Rates,PRC DELEGATED CO-COMMISSIONING,CHARNOCK HEALTH PRIMARY CARE CENTRE,17789584,112.59
Department of Health,NHS Sheffield CCG,30/06/2017,C&M-GMS Prof Fees Prescribing,PRC DELEGATED CO-COMMISSIONING,CHARNOCK HEALTH PRIMARY CARE CENTRE,17789584,69.42
Department of Health,NHS Sheffield CCG,30/06/2017,C&M-GMS QOF Achievement,PRC DELEGATED CO-COMMISSIONING,CHARNOCK HEALTH PRIMARY CARE CENTRE,17789584,"20,604.70"
Department of Health,NHS Sheffield CCG,30/06/2017,C&M-GMS QOF Aspiration,PRC DELEGATED CO-COMMISSIONING,CHARNOCK HEALTH PRIMARY CARE CENTRE,17789584,"4,669.55"
Department of Health,NHS Sheffield CCG,30/06/2017,C&M-GMS Cost of Drugs -Prescribing,LOCAL ENHANCED SERVICES,CARTERKNOWLE & DORE MEDICAL PRACTICE,17789591,"3,183.38"
Department of Health,NHS Sheffield CCG,30/06/2017,C&M-GMS DES Extended Hours Access,PRC DELEGATED CO-COMMISSIONING,CARTERKNOWLE & DORE MEDICAL PRACTICE,17789591,"5,872.90"
Department of Health,NHS Sheffield CCG,30/06/2017,C&M-GMS DES Learn Dsblty Hlth Chk,PRC DELEGATED CO-COMMISSIONING,CARTERKNOWLE & DORE MEDICAL PRACTICE,17789591,232
Department of Health,NHS Sheffield CCG,30/06/2017,C&M-GMS Global Sum,PRC DELEGATED CO-COMMISSIONING,CARTERKNOWLE & DORE MEDICAL PRACTICE,17789591,"79,518.10"
Department of Health,NHS Sheffield CCG,30/06/2017,C&M-GMS MPIG Correction Factor,PRC DELEGATED CO-COMMISSIONING,CARTERKNOWLE & DORE MEDICAL PRACTICE,17789591,"2,241.88"
Department of Health,NHS Sheffield CCG,30/06/2017,C&M-GMS PCO Seniority,PRC DELEGATED CO-COMMISSIONING,CARTERKNOWLE & DORE MEDICAL PRACTICE,17789591,"3,254.49"
Department of Health,NHS Sheffield CCG,30/06/2017,C&M-GMS Prem Notional Rent,PRC DELEGATED CO-COMMISSIONING,CARTERKNOWLE & DORE MEDICAL PRACTICE,17789591,"7,538.34"
Department of Health,NHS Sheffield CCG,30/06/2017,C&M-GMS Prof Fees Prescribing,PRC DELEGATED CO-COMMISSIONING,CARTERKNOWLE & DORE MEDICAL PRACTICE,17789591,212.89
Department of Health,NHS Sheffield CCG,30/06/2017,C&M-GMS QOF Achievement,PRC DELEGATED CO-COMMISSIONING,CARTERKNOWLE & DORE MEDICAL PRACTICE,17789591,"65,517.06"
Department of Health,NHS Sheffield CCG,30/06/2017,C&M-GMS QOF Aspiration,PRC DELEGATED CO-COMMISSIONING,CARTERKNOWLE & DORE MEDICAL PRACTICE,17789591,"10,317.62"
Department of Health,NHS Sheffield CCG,30/06/2017,C&M-GMS Cost of Drugs -Prescribing,LOCAL ENHANCED SERVICES,CROOKES PRACTICE,17789601,"1,099.39"
Department of Health,NHS Sheffield CCG,30/06/2017,C&M-GMS DES Extended Hours Access,PRC DELEGATED CO-COMMISSIONING,CROOKES PRACTICE,17789601,"3,688.38"
Department of Health,NHS Sheffield CCG,30/06/2017,C&M-GMS Global Sum,PRC DELEGATED CO-COMMISSIONING,CROOKES PRACTICE,17789601,"46,488.07"
Department of Health,NHS Sheffield CCG,30/06/2017,C&M-GMS MPIG Correction Factor,PRC DELEGATED CO-COMMISSIONING,CROOKES PRACTICE,17789601,"2,318.88"
Department of Health,NHS Sheffield CCG,30/06/2017,C&M-GMS PCO Other,PRC DELEGATED CO-COMMISSIONING,CROOKES PRACTICE,17789601,452.6
Department of Health,NHS Sheffield CCG,30/06/2017,C&M-GMS PCO Seniority,PRC DELEGATED CO-COMMISSIONING,CROOKES PRACTICE,17789601,"2,003.65"
Department of Health,NHS Sheffield CCG,30/06/2017,C&M-GMS Prem Notional Rent,PRC DELEGATED CO-COMMISSIONING,CROOKES PRACTICE,17789601,"3,752.42"
Department of Health,NHS Sheffield CCG,30/06/2017,C&M-GMS Prem Rates,PRC DELEGATED CO-COMMISSIONING,CROOKES PRACTICE,17789601,"1,444.00"
Department of Health,NHS Sheffield CCG,30/06/2017,C&M-GMS Prof Fees Prescribing,PRC DELEGATED CO-COMMISSIONING,CROOKES PRACTICE,17789601,166.62
Department of Health,NHS Sheffield CCG,30/06/2017,C&M-GMS QOF Achievement,PRC DELEGATED CO-COMMISSIONING,CROOKES PRACTICE,17789601,"24,257.01"
Department of Health,NHS Sheffield CCG,30/06/2017,C&M-GMS QOF Aspiration,PRC DELEGATED CO-COMMISSIONING,CROOKES PRACTICE,17789601,"4,702.76"
Department of Health,NHS Sheffield CCG,30/06/2017,C&M-GMS Cost of Drugs -Prescribing,LOCAL ENHANCED SERVICES,DEVONSHIRE GREEN MEDICAL CENTRE,17789612,403.86
Department of Health,NHS Sheffield CCG,30/06/2017,C&M-GMS Global Sum,PRC DELEGATED CO-COMMISSIONING,DEVONSHIRE GREEN MEDICAL CENTRE,17789612,"44,336.83"
Department of Health,NHS Sheffield CCG,30/06/2017,C&M-GMS MPIG Correction Factor,PRC DELEGATED CO-COMMISSIONING,DEVONSHIRE GREEN MEDICAL CENTRE,17789612,"4,846.80"
Department of Health,NHS Sheffield CCG,30/06/2017,C&M-GMS PCO Seniority,PRC DELEGATED CO-COMMISSIONING,DEVONSHIRE GREEN MEDICAL CENTRE,17789612,"3,263.08"
Department of Health,NHS Sheffield CCG,30/06/2017,C&M-GMS Prem Notional Rent,PRC DELEGATED CO-COMMISSIONING,DEVONSHIRE GREEN MEDICAL CENTRE,17789612,"5,987.50"
Department of Health,NHS Sheffield CCG,30/06/2017,C&M-GMS Prof Fees Prescribing,PRC DELEGATED CO-COMMISSIONING,DEVONSHIRE GREEN MEDICAL CENTRE,17789612,69.41
Department of Health,NHS Sheffield CCG,30/06/2017,C&M-GMS QOF Achievement,PRC DELEGATED CO-COMMISSIONING,DEVONSHIRE GREEN MEDICAL CENTRE,17789612,"19,695.74"
Department of Health,NHS Sheffield CCG,30/06/2017,C&M-GMS QOF Aspiration,PRC DELEGATED CO-COMMISSIONING,DEVONSHIRE GREEN MEDICAL CENTRE,17789612,"5,205.83"
Department of Health,NHS Sheffield CCG,30/06/2017,C&M-GMS Cost of Drugs -Prescribing,LOCAL ENHANCED SERVICES,ELM LANE SURGERY,17789623,179.04
Department of Health,NHS Sheffield CCG,30/06/2017,C&M-GMS Global Sum,PRC DELEGATED CO-COMMISSIONING,ELM LANE SURGERY,17789623,"37,813.97"
Department of Health,NHS Sheffield CCG,30/06/2017,C&M-GMS MPIG Correction Factor,PRC DELEGATED CO-COMMISSIONING,ELM LANE SURGERY,17789623,"1,257.79"
Department of Health,NHS Sheffield CCG,30/06/2017,C&M-GMS PCO Seniority,PRC DELEGATED CO-COMMISSIONING,ELM LANE SURGERY,17789623,"1,437.18"
Department of Health,NHS Sheffield CCG,30/06/2017,C&M-GMS Prem Notional Rent,PRC DELEGATED CO-COMMISSIONING,ELM LANE SURGERY,17789623,"5,168.50"
Department of Health,NHS Sheffield CCG,30/06/2017,C&M-GMS Prem Rates,PRC DELEGATED CO-COMMISSIONING,ELM LANE SURGERY,17789623,"1,268.00"
Department of Health,NHS Sheffield CCG,30/06/2017,C&M-GMS Prof Fees Prescribing,PRC DELEGATED CO-COMMISSIONING,ELM LANE SURGERY,17789623,78.67
Department of Health,NHS Sheffield CCG,30/06/2017,C&M-GMS QOF Achievement,PRC DELEGATED CO-COMMISSIONING,ELM LANE SURGERY,17789623,"20,119.17"
Department of Health,NHS Sheffield CCG,30/06/2017,C&M-GMS QOF Aspiration,PRC DELEGATED CO-COMMISSIONING,ELM LANE SURGERY,17789623,"4,880.72"
Department of Health,NHS Sheffield CCG,30/06/2017,C&M-GMS Cost of Drugs -Prescribing,LOCAL ENHANCED SERVICES,DUKE MEDICAL CENTRE,17789628,743.89
Department of Health,NHS Sheffield CCG,30/06/2017,C&M-GMS DES Extended Hours Access,PRC DELEGATED CO-COMMISSIONING,DUKE MEDICAL CENTRE,17789628,"3,191.05"
Department of Health,NHS Sheffield CCG,30/06/2017,C&M-GMS Global Sum,PRC DELEGATED CO-COMMISSIONING,DUKE MEDICAL CENTRE,17789628,"52,628.79"
Department of Health,NHS Sheffield CCG,30/06/2017,C&M-GMS MPIG Correction Factor,PRC DELEGATED CO-COMMISSIONING,DUKE MEDICAL CENTRE,17789628,918.76
Department of Health,NHS Sheffield CCG,30/06/2017,C&M-GMS PCO Seniority,PRC DELEGATED CO-COMMISSIONING,DUKE MEDICAL CENTRE,17789628,"1,673.58"
Department of Health,NHS Sheffield CCG,30/06/2017,C&M-GMS Prem Notional Rent,PRC DELEGATED CO-COMMISSIONING,DUKE MEDICAL CENTRE,17789628,"5,721.67"
Department of Health,NHS Sheffield CCG,30/06/2017,C&M-GMS Prof Fees Prescribing,PRC DELEGATED CO-COMMISSIONING,DUKE MEDICAL CENTRE,17789628,203.63
Department of Health,NHS Sheffield CCG,30/06/2017,C&M-GMS QOF Achievement,PRC DELEGATED CO-COMMISSIONING,DUKE MEDICAL CENTRE,17789628,"26,097.45"
Department of Health,NHS Sheffield CCG,30/06/2017,C&M-GMS QOF Aspiration,PRC DELEGATED CO-COMMISSIONING,DUKE MEDICAL CENTRE,17789628,"5,346.37"
Department of Health,NHS Sheffield CCG,30/06/2017,C&M-GMS Cost of Drugs -Prescribing,LOCAL ENHANCED SERVICES,HANDSWORTH MEDICAL PRACTICE SHEFFIELD,17789646,744.59
Department of Health,NHS Sheffield CCG,30/06/2017,C&M-GMS DES Extended Hours Access,PRC DELEGATED CO-COMMISSIONING,HANDSWORTH MEDICAL PRACTICE SHEFFIELD,17789646,"4,690.63"
Department of Health,NHS Sheffield CCG,30/06/2017,C&M-GMS DES UNPLANNED ADMISSIONS,PRC DELEGATED CO-COMMISSIONING,HANDSWORTH MEDICAL PRACTICE SHEFFIELD,17789646,"7,448.98"
Department of Health,NHS Sheffield CCG,30/06/2017,C&M-GMS Global Sum,PRC DELEGATED CO-COMMISSIONING,HANDSWORTH MEDICAL PRACTICE SHEFFIELD,17789646,"72,134.36"
Department of Health,NHS Sheffield CCG,30/06/2017,C&M-GMS PCO Locum Adop/Pat/Mat,PRC DELEGATED CO-COMMISSIONING,HANDSWORTH MEDICAL PRACTICE SHEFFIELD,17789646,"11,007.54"
Department of Health,NHS Sheffield CCG,30/06/2017,C&M-GMS PCO Seniority,PRC DELEGATED CO-COMMISSIONING,HANDSWORTH MEDICAL PRACTICE SHEFFIELD,17789646,"1,695.26"
Department of Health,NHS Sheffield CCG,30/06/2017,C&M-GMS Prem Notional Rent,PRC DELEGATED CO-COMMISSIONING,HANDSWORTH MEDICAL PRACTICE SHEFFIELD,17789646,"3,321.66"
Department of Health,NHS Sheffield CCG,30/06/2017,C&M-GMS Prem Rates,PRC DELEGATED CO-COMMISSIONING,HANDSWORTH MEDICAL PRACTICE SHEFFIELD,17789646,"1,214.00"
Department of Health,NHS Sheffield CCG,30/06/2017,C&M-GMS Prof Fees Prescribing,PRC DELEGATED CO-COMMISSIONING,HANDSWORTH MEDICAL PRACTICE SHEFFIELD,17789646,187.44
Department of Health,NHS Sheffield CCG,30/06/2017,C&M-GMS QOF Achievement,PRC DELEGATED CO-COMMISSIONING,HANDSWORTH MEDICAL PRACTICE SHEFFIELD,17789646,"38,414.72"
Department of Health,NHS Sheffield CCG,30/06/2017,C&M-GMS QOF Aspiration,PRC DELEGATED CO-COMMISSIONING,HANDSWORTH MEDICAL PRACTICE SHEFFIELD,17789646,"8,011.43"
Department of Health,NHS Sheffield CCG,30/06/2017,C&M-GMS Cost of Drugs -Prescribing,LOCAL ENHANCED SERVICES,GRENOSIDE SURGERY,17789649,786.22
Department of Health,NHS Sheffield CCG,30/06/2017,C&M-GMS DES Extended Hours Access,PRC DELEGATED CO-COMMISSIONING,GRENOSIDE SURGERY,17789649,"3,469.88"
Department of Health,NHS Sheffield CCG,30/06/2017,C&M-GMS Global Sum,PRC DELEGATED CO-COMMISSIONING,GRENOSIDE SURGERY,17789649,"53,583.75"
Department of Health,NHS Sheffield CCG,30/06/2017,C&M-GMS PCO Other,PRC DELEGATED CO-COMMISSIONING,GRENOSIDE SURGERY,17789649,452.6
Department of Health,NHS Sheffield CCG,30/06/2017,C&M-GMS PCO Seniority,PRC DELEGATED CO-COMMISSIONING,GRENOSIDE SURGERY,17789649,"1,856.50"
Department of Health,NHS Sheffield CCG,30/06/2017,C&M-GMS Prem Notional Rent,PRC DELEGATED CO-COMMISSIONING,GRENOSIDE SURGERY,17789649,"8,150.17"
Department of Health,NHS Sheffield CCG,30/06/2017,C&M-GMS Prem Rates,PRC DELEGATED CO-COMMISSIONING,GRENOSIDE SURGERY,17789649,"1,643.00"
Department of Health,NHS Sheffield CCG,30/06/2017,C&M-GMS Prem Water Rates,PRC DELEGATED CO-COMMISSIONING,GRENOSIDE SURGERY,17789649,156.17
Department of Health,NHS Sheffield CCG,30/06/2017,C&M-GMS Prof Fees Prescribing,PRC DELEGATED CO-COMMISSIONING,GRENOSIDE SURGERY,17789649,85.61
Department of Health,NHS Sheffield CCG,30/06/2017,C&M-GMS QOF Achievement,PRC DELEGATED CO-COMMISSIONING,GRENOSIDE SURGERY,17789649,"25,594.68"
Department of Health,NHS Sheffield CCG,30/06/2017,C&M-GMS QOF Aspiration,PRC DELEGATED CO-COMMISSIONING,GRENOSIDE SURGERY,17789649,"6,197.70"
Department of Health,NHS Sheffield CCG,30/06/2017,C&M-GMS Cost of Drugs -Prescribing,LOCAL ENHANCED SERVICES,GREYSTONES MEDICAL CENTRE,17789653,64.42
Department of Health,NHS Sheffield CCG,30/06/2017,C&M-GMS DES Extended Hours Access,PRC DELEGATED CO-COMMISSIONING,GREYSTONES MEDICAL CENTRE,17789653,"1,742.30"
Department of Health,NHS Sheffield CCG,30/06/2017,C&M-GMS Global Sum,PRC DELEGATED CO-COMMISSIONING,GREYSTONES MEDICAL CENTRE,17789653,"18,465.94"
Department of Health,NHS Sheffield CCG,30/06/2017,C&M-GMS MPIG Correction Factor,PRC DELEGATED CO-COMMISSIONING,GREYSTONES MEDICAL CENTRE,17789653,"1,656.69"
Department of Health,NHS Sheffield CCG,30/06/2017,C&M-GMS PCO Other,PRC DELEGATED CO-COMMISSIONING,GREYSTONES MEDICAL CENTRE,17789653,384.5
Department of Health,NHS Sheffield CCG,30/06/2017,C&M-GMS PCO Seniority,PRC DELEGATED CO-COMMISSIONING,GREYSTONES MEDICAL CENTRE,17789653,578.21
Department of Health,NHS Sheffield CCG,30/06/2017,C&M-GMS Prem Notional Rent,PRC DELEGATED CO-COMMISSIONING,GREYSTONES MEDICAL CENTRE,17789653,"2,729.17"
Department of Health,NHS Sheffield CCG,30/06/2017,C&M-GMS Prof Fees Prescribing,PRC DELEGATED CO-COMMISSIONING,GREYSTONES MEDICAL CENTRE,17789653,25.45
Department of Health,NHS Sheffield CCG,30/06/2017,C&M-GMS QOF Achievement,PRC DELEGATED CO-COMMISSIONING,GREYSTONES MEDICAL CENTRE,17789653,"9,357.91"
Department of Health,NHS Sheffield CCG,30/06/2017,C&M-GMS QOF Aspiration,PRC DELEGATED CO-COMMISSIONING,GREYSTONES MEDICAL CENTRE,17789653,"2,071.10"
Department of Health,NHS Sheffield CCG,30/06/2017,C&M-GMS Cost of Drugs -Prescribing,LOCAL ENHANCED SERVICES,HEELEY GREEN SURGERY,17789657,398.06
Department of Health,NHS Sheffield CCG,30/06/2017,C&M-GMS DES Extended Hours Access,PRC DELEGATED CO-COMMISSIONING,HEELEY GREEN SURGERY,17789657,"2,696.10"
Department of Health,NHS Sheffield CCG,30/06/2017,C&M-GMS Global Sum,PRC DELEGATED CO-COMMISSIONING,HEELEY GREEN SURGERY,17789657,"38,846.68"
Department of Health,NHS Sheffield CCG,30/06/2017,C&M-GMS MPIG Correction Factor,PRC DELEGATED CO-COMMISSIONING,HEELEY GREEN SURGERY,17789657,564.3
Department of Health,NHS Sheffield CCG,30/06/2017,C&M-GMS PCO Seniority,PRC DELEGATED CO-COMMISSIONING,HEELEY GREEN SURGERY,17789657,911.31
Department of Health,NHS Sheffield CCG,30/06/2017,C&M-GMS Prem Notional Rent,PRC DELEGATED CO-COMMISSIONING,HEELEY GREEN SURGERY,17789657,"3,254.17"
Department of Health,NHS Sheffield CCG,30/06/2017,C&M-GMS Prem Rates,PRC DELEGATED CO-COMMISSIONING,HEELEY GREEN SURGERY,17789657,245
Department of Health,NHS Sheffield CCG,30/06/2017,C&M-GMS Prof Fees Prescribing,PRC DELEGATED CO-COMMISSIONING,HEELEY GREEN SURGERY,17789657,78.67
Department of Health,NHS Sheffield CCG,30/06/2017,C&M-GMS QOF Achievement,PRC DELEGATED CO-COMMISSIONING,HEELEY GREEN SURGERY,17789657,"25,259.05"
Department of Health,NHS Sheffield CCG,30/06/2017,C&M-GMS QOF Aspiration,PRC DELEGATED CO-COMMISSIONING,HEELEY GREEN SURGERY,17789657,"4,920.38"
Department of Health,NHS Sheffield CCG,30/06/2017,C&M-GMS Cost of Drugs -Prescribing,LOCAL ENHANCED SERVICES,HOLLIES MEDICAL CENTRE,17789660,659.16
Department of Health,NHS Sheffield CCG,30/06/2017,C&M-GMS DES Extended Hours Access,PRC DELEGATED CO-COMMISSIONING,HOLLIES MEDICAL CENTRE,17789660,"4,035.13"
Department of Health,NHS Sheffield CCG,30/06/2017,C&M-GMS Global Sum,PRC DELEGATED CO-COMMISSIONING,HOLLIES MEDICAL CENTRE,17789660,"50,888.36"
Department of Health,NHS Sheffield CCG,30/06/2017,C&M-GMS MPIG Correction Factor,PRC DELEGATED CO-COMMISSIONING,HOLLIES MEDICAL CENTRE,17789660,"2,179.09"
Department of Health,NHS Sheffield CCG,30/06/2017,C&M-GMS PCO Other,PRC DELEGATED CO-COMMISSIONING,HOLLIES MEDICAL CENTRE,17789660,452.6
Department of Health,NHS Sheffield CCG,30/06/2017,C&M-GMS PCO Seniority,PRC DELEGATED CO-COMMISSIONING,HOLLIES MEDICAL CENTRE,17789660,"4,055.42"
Department of Health,NHS Sheffield CCG,30/06/2017,C&M-GMS Prem Notional Rent,PRC DELEGATED CO-COMMISSIONING,HOLLIES MEDICAL CENTRE,17789660,"3,229.17"
Department of Health,NHS Sheffield CCG,30/06/2017,C&M-GMS Prem Rates,PRC DELEGATED CO-COMMISSIONING,HOLLIES MEDICAL CENTRE,17789660,"1,188.00"
Department of Health,NHS Sheffield CCG,30/06/2017,C&M-GMS Prof Fees Prescribing,PRC DELEGATED CO-COMMISSIONING,HOLLIES MEDICAL CENTRE,17789660,71.73
Department of Health,NHS Sheffield CCG,30/06/2017,C&M-GMS QOF Achievement,PRC DELEGATED CO-COMMISSIONING,HOLLIES MEDICAL CENTRE,17789660,"31,561.77"
Department of Health,NHS Sheffield CCG,30/06/2017,C&M-GMS QOF Aspiration,PRC DELEGATED CO-COMMISSIONING,HOLLIES MEDICAL CENTRE,17789660,"6,561.21"
Department of Health,NHS Sheffield CCG,30/06/2017,C&M-GMS Cost of Drugs -Prescribing,LOCAL ENHANCED SERVICES,HEALTH CARE SURGERY,17789662,746.58
Department of Health,NHS Sheffield CCG,30/06/2017,C&M-GMS DES Extended Hours Access,PRC DELEGATED CO-COMMISSIONING,HEALTH CARE SURGERY,17789662,"2,360.75"
Department of Health,NHS Sheffield CCG,30/06/2017,C&M-GMS Global Sum,PRC DELEGATED CO-COMMISSIONING,HEALTH CARE SURGERY,17789662,"35,869.25"
Department of Health,NHS Sheffield CCG,30/06/2017,C&M-GMS MPIG Correction Factor,PRC DELEGATED CO-COMMISSIONING,HEALTH CARE SURGERY,17789662,"1,170.03"
Department of Health,NHS Sheffield CCG,30/06/2017,C&M-GMS PCO Other,PRC DELEGATED CO-COMMISSIONING,HEALTH CARE SURGERY,17789662,384.5
Department of Health,NHS Sheffield CCG,30/06/2017,C&M-GMS PCO Seniority,PRC DELEGATED CO-COMMISSIONING,HEALTH CARE SURGERY,17789662,579.37
Department of Health,NHS Sheffield CCG,30/06/2017,C&M-GMS Prem Notional Rent,PRC DELEGATED CO-COMMISSIONING,HEALTH CARE SURGERY,17789662,"3,862.50"
Department of Health,NHS Sheffield CCG,30/06/2017,C&M-GMS Prem Rates,PRC DELEGATED CO-COMMISSIONING,HEALTH CARE SURGERY,17789662,518
Department of Health,NHS Sheffield CCG,30/06/2017,C&M-GMS Prof Fees Prescribing,PRC DELEGATED CO-COMMISSIONING,HEALTH CARE SURGERY,17789662,104.13
Department of Health,NHS Sheffield CCG,30/06/2017,C&M-GMS QOF Achievement,PRC DELEGATED CO-COMMISSIONING,HEALTH CARE SURGERY,17789662,"16,210.59"
Department of Health,NHS Sheffield CCG,30/06/2017,C&M-GMS QOF Aspiration,PRC DELEGATED CO-COMMISSIONING,HEALTH CARE SURGERY,17789662,"4,381.71"
Department of Health,NHS Sheffield CCG,30/06/2017,C&M-GMS Cost of Drugs -Prescribing,LOCAL ENHANCED SERVICES,MEDICAL CENTRE CRYSTAL PEAKS,17789665,"1,108.05"
Department of Health,NHS Sheffield CCG,30/06/2017,C&M-GMS DES Extended Hours Access,PRC DELEGATED CO-COMMISSIONING,MEDICAL CENTRE CRYSTAL PEAKS,17789665,"3,139.28"
Department of Health,NHS Sheffield CCG,30/06/2017,C&M-GMS DES Learn Dsblty Hlth Chk,PRC DELEGATED CO-COMMISSIONING,MEDICAL CENTRE CRYSTAL PEAKS,17789665,928
Department of Health,NHS Sheffield CCG,30/06/2017,C&M-GMS Global Sum,PRC DELEGATED CO-COMMISSIONING,MEDICAL CENTRE CRYSTAL PEAKS,17789665,"43,614.21"
Department of Health,NHS Sheffield CCG,30/06/2017,C&M-GMS MPIG Correction Factor,PRC DELEGATED CO-COMMISSIONING,MEDICAL CENTRE CRYSTAL PEAKS,17789665,"1,697.01"
Department of Health,NHS Sheffield CCG,30/06/2017,C&M-GMS PCO Other,PRC DELEGATED CO-COMMISSIONING,MEDICAL CENTRE CRYSTAL PEAKS,17789665,452.6
Department of Health,NHS Sheffield CCG,30/06/2017,C&M-GMS PCO Seniority,PRC DELEGATED CO-COMMISSIONING,MEDICAL CENTRE CRYSTAL PEAKS,17789665,"2,373.26"
Department of Health,NHS Sheffield CCG,30/06/2017,C&M-GMS Prem Notional Rent,PRC DELEGATED CO-COMMISSIONING,MEDICAL CENTRE CRYSTAL PEAKS,17789665,270
Department of Health,NHS Sheffield CCG,30/06/2017,C&M-GMS Prem Rates,PRC DELEGATED CO-COMMISSIONING,MEDICAL CENTRE CRYSTAL PEAKS,17789665,"1,822.00"
Department of Health,NHS Sheffield CCG,30/06/2017,C&M-GMS Prem Water Rates,PRC DELEGATED CO-COMMISSIONING,MEDICAL CENTRE CRYSTAL PEAKS,17789665,340.46
Department of Health,NHS Sheffield CCG,30/06/2017,C&M-GMS Prof Fees Prescribing,PRC DELEGATED CO-COMMISSIONING,MEDICAL CENTRE CRYSTAL PEAKS,17789665,307.75
Department of Health,NHS Sheffield CCG,30/06/2017,C&M-GMS QOF Achievement,PRC DELEGATED CO-COMMISSIONING,MEDICAL CENTRE CRYSTAL PEAKS,17789665,"32,106.30"
Department of Health,NHS Sheffield CCG,30/06/2017,C&M-GMS QOF Aspiration,PRC DELEGATED CO-COMMISSIONING,MEDICAL CENTRE CRYSTAL PEAKS,17789665,"6,023.36"
Department of Health,NHS Sheffield CCG,30/06/2017,C&M-GMS Cost of Drugs -Prescribing,LOCAL ENHANCED SERVICES,MATHEWS PRACTICE,17789669,623.21
Department of Health,NHS Sheffield CCG,30/06/2017,C&M-GMS DES Extended Hours Access,PRC DELEGATED CO-COMMISSIONING,MATHEWS PRACTICE,17789669,"4,369.53"
Department of Health,NHS Sheffield CCG,30/06/2017,C&M-GMS Global Sum,PRC DELEGATED CO-COMMISSIONING,MATHEWS PRACTICE,17789669,"66,824.53"
Department of Health,NHS Sheffield CCG,30/06/2017,C&M-GMS MPIG Correction Factor,PRC DELEGATED CO-COMMISSIONING,MATHEWS PRACTICE,17789669,898.44
Department of Health,NHS Sheffield CCG,30/06/2017,C&M-GMS PCO Seniority,PRC DELEGATED CO-COMMISSIONING,MATHEWS PRACTICE,17789669,"1,397.01"
Department of Health,NHS Sheffield CCG,30/06/2017,C&M-GMS Prem Notional Rent,PRC DELEGATED CO-COMMISSIONING,MATHEWS PRACTICE,17789669,"8,583.34"
Department of Health,NHS Sheffield CCG,30/06/2017,C&M-GMS Prem Rates,PRC DELEGATED CO-COMMISSIONING,MATHEWS PRACTICE,17789669,"1,757.00"
Department of Health,NHS Sheffield CCG,30/06/2017,C&M-GMS Prof Fees Prescribing,PRC DELEGATED CO-COMMISSIONING,MATHEWS PRACTICE,17789669,242.97
Department of Health,NHS Sheffield CCG,30/06/2017,C&M-GMS QOF Aspiration,PRC DELEGATED CO-COMMISSIONING,MATHEWS PRACTICE,17789669,"9,686.98"
Department of Health,NHS Sheffield CCG,30/06/2017,C&M-GMS Cost of Drugs -Prescribing,LOCAL ENHANCED SERVICES,MANOR PARK MEDICAL CENTRE SHEFFIELD,17789671,647.08
Department of Health,NHS Sheffield CCG,30/06/2017,C&M-GMS DES Extended Hours Access,PRC DELEGATED CO-COMMISSIONING,MANOR PARK MEDICAL CENTRE SHEFFIELD,17789671,"2,088.10"
Department of Health,NHS Sheffield CCG,30/06/2017,C&M-GMS Global Sum,PRC DELEGATED CO-COMMISSIONING,MANOR PARK MEDICAL CENTRE SHEFFIELD,17789671,"33,030.74"
Department of Health,NHS Sheffield CCG,30/06/2017,C&M-GMS MPIG Correction Factor,PRC DELEGATED CO-COMMISSIONING,MANOR PARK MEDICAL CENTRE SHEFFIELD,17789671,559.19
Department of Health,NHS Sheffield CCG,30/06/2017,C&M-GMS PCO Seniority,PRC DELEGATED CO-COMMISSIONING,MANOR PARK MEDICAL CENTRE SHEFFIELD,17789671,"1,279.83"
Department of Health,NHS Sheffield CCG,30/06/2017,C&M-GMS Prem Notional Rent,PRC DELEGATED CO-COMMISSIONING,MANOR PARK MEDICAL CENTRE SHEFFIELD,17789671,"3,050.00"
Department of Health,NHS Sheffield CCG,30/06/2017,C&M-GMS Prem Rates,PRC DELEGATED CO-COMMISSIONING,MANOR PARK MEDICAL CENTRE SHEFFIELD,17789671,428
Department of Health,NHS Sheffield CCG,30/06/2017,C&M-GMS Prof Fees Prescribing,PRC DELEGATED CO-COMMISSIONING,MANOR PARK MEDICAL CENTRE SHEFFIELD,17789671,69.42
Department of Health,NHS Sheffield CCG,30/06/2017,C&M-GMS QOF Achievement,PRC DELEGATED CO-COMMISSIONING,MANOR PARK MEDICAL CENTRE SHEFFIELD,17789671,"14,617.03"
Department of Health,NHS Sheffield CCG,30/06/2017,C&M-GMS QOF Aspiration,PRC DELEGATED CO-COMMISSIONING,MANOR PARK MEDICAL CENTRE SHEFFIELD,17789671,"4,479.66"
Department of Health,NHS Sheffield CCG,30/06/2017,C&M-GMS Cost of Drugs -Prescribing,LOCAL ENHANCED SERVICES,MILL ROAD SURGERY SHEFFIELD,17789673,"1,408.08"
Department of Health,NHS Sheffield CCG,30/06/2017,C&M-GMS DES Extended Hours Access,PRC DELEGATED CO-COMMISSIONING,MILL ROAD SURGERY SHEFFIELD,17789673,"2,489.00"
Department of Health,NHS Sheffield CCG,30/06/2017,C&M-GMS Global Sum,PRC DELEGATED CO-COMMISSIONING,MILL ROAD SURGERY SHEFFIELD,17789673,"38,018.58"
Department of Health,NHS Sheffield CCG,30/06/2017,C&M-GMS MPIG Correction Factor,PRC DELEGATED CO-COMMISSIONING,MILL ROAD SURGERY SHEFFIELD,17789673,183.06
Department of Health,NHS Sheffield CCG,30/06/2017,C&M-GMS PCO Other,PRC DELEGATED CO-COMMISSIONING,MILL ROAD SURGERY SHEFFIELD,17789673,452.6
Department of Health,NHS Sheffield CCG,30/06/2017,C&M-GMS PCO Seniority,PRC DELEGATED CO-COMMISSIONING,MILL ROAD SURGERY SHEFFIELD,17789673,"1,355.05"
Department of Health,NHS Sheffield CCG,30/06/2017,C&M-GMS Prem Notional Rent,PRC DELEGATED CO-COMMISSIONING,MILL ROAD SURGERY SHEFFIELD,17789673,"4,587.50"
Department of Health,NHS Sheffield CCG,30/06/2017,C&M-GMS Prof Fees Prescribing,PRC DELEGATED CO-COMMISSIONING,MILL ROAD SURGERY SHEFFIELD,17789673,120.32
Department of Health,NHS Sheffield CCG,30/06/2017,C&M-GMS QOF Achievement,PRC DELEGATED CO-COMMISSIONING,MILL ROAD SURGERY SHEFFIELD,17789673,"26,372.40"
Department of Health,NHS Sheffield CCG,30/06/2017,C&M-GMS QOF Aspiration,PRC DELEGATED CO-COMMISSIONING,MILL ROAD SURGERY SHEFFIELD,17789673,"5,445.09"
Department of Health,NHS Sheffield CCG,30/06/2017,C&M-GMS Cost of Drugs -Prescribing,LOCAL ENHANCED SERVICES,NORFOLK PARK HEALTH CENTRE,17789677,864.26
Department of Health,NHS Sheffield CCG,30/06/2017,C&M-GMS Global Sum,PRC DELEGATED CO-COMMISSIONING,NORFOLK PARK HEALTH CENTRE,17789677,"33,411.18"
Department of Health,NHS Sheffield CCG,30/06/2017,C&M-GMS MPIG Correction Factor,PRC DELEGATED CO-COMMISSIONING,NORFOLK PARK HEALTH CENTRE,17789677,"1,386.91"
Department of Health,NHS Sheffield CCG,30/06/2017,C&M-GMS PCO Seniority,PRC DELEGATED CO-COMMISSIONING,NORFOLK PARK HEALTH CENTRE,17789677,"3,079.00"
Department of Health,NHS Sheffield CCG,30/06/2017,C&M-GMS Prem Healthcentre Rent,PRC DELEGATED CO-COMMISSIONING,NORFOLK PARK HEALTH CENTRE,17789677,"21,922.34"
Department of Health,NHS Sheffield CCG,30/06/2017,C&M-GMS Prof Fees Prescribing,PRC DELEGATED CO-COMMISSIONING,NORFOLK PARK HEALTH CENTRE,17789677,115.7
Department of Health,NHS Sheffield CCG,30/06/2017,C&M-GMS QOF Achievement,PRC DELEGATED CO-COMMISSIONING,NORFOLK PARK HEALTH CENTRE,17789677,"17,548.01"
Department of Health,NHS Sheffield CCG,30/06/2017,C&M-GMS QOF Aspiration,PRC DELEGATED CO-COMMISSIONING,NORFOLK PARK HEALTH CENTRE,17789677,"4,068.39"
Department of Health,NHS Sheffield CCG,30/06/2017,C&M-GMS Cost of Drugs -Prescribing,LOCAL ENHANCED SERVICES,NORWOOD MEDICAL CENTRE SHEFFIELD,17789680,370.33
Department of Health,NHS Sheffield CCG,30/06/2017,C&M-GMS DES Extended Hours Access,PRC DELEGATED CO-COMMISSIONING,NORWOOD MEDICAL CENTRE SHEFFIELD,17789680,"3,752.03"
Department of Health,NHS Sheffield CCG,30/06/2017,C&M-GMS Global Sum,PRC DELEGATED CO-COMMISSIONING,NORWOOD MEDICAL CENTRE SHEFFIELD,17789680,"60,818.06"
Department of Health,NHS Sheffield CCG,30/06/2017,C&M-GMS PCO Other,PRC DELEGATED CO-COMMISSIONING,NORWOOD MEDICAL CENTRE SHEFFIELD,17789680,452.6
Department of Health,NHS Sheffield CCG,30/06/2017,C&M-GMS PCO Seniority,PRC DELEGATED CO-COMMISSIONING,NORWOOD MEDICAL CENTRE SHEFFIELD,17789680,"3,235.30"
Department of Health,NHS Sheffield CCG,30/06/2017,C&M-GMS Prem Notional Rent,PRC DELEGATED CO-COMMISSIONING,NORWOOD MEDICAL CENTRE SHEFFIELD,17789680,"5,187.50"
Department of Health,NHS Sheffield CCG,30/06/2017,C&M-GMS Prof Fees Prescribing,PRC DELEGATED CO-COMMISSIONING,NORWOOD MEDICAL CENTRE SHEFFIELD,17789680,108.76
Department of Health,NHS Sheffield CCG,30/06/2017,C&M-GMS QOF Achievement,PRC DELEGATED CO-COMMISSIONING,NORWOOD MEDICAL CENTRE SHEFFIELD,17789680,"35,558.67"
Department of Health,NHS Sheffield CCG,30/06/2017,C&M-GMS QOF Aspiration,PRC DELEGATED CO-COMMISSIONING,NORWOOD MEDICAL CENTRE SHEFFIELD,17789680,"8,411.55"
Department of Health,NHS Sheffield CCG,30/06/2017,C&M-GMS Cost of Drugs -Prescribing,LOCAL ENHANCED SERVICES,SHARROW LANE MEDICAL CENTRE,17789688,342.83
Department of Health,NHS Sheffield CCG,30/06/2017,C&M-GMS DES Extended Hours Access,PRC DELEGATED CO-COMMISSIONING,SHARROW LANE MEDICAL CENTRE,17789688,"1,822.58"
Department of Health,NHS Sheffield CCG,30/06/2017,C&M-GMS DES Learn Dsblty Hlth Chk,PRC DELEGATED CO-COMMISSIONING,SHARROW LANE MEDICAL CENTRE,17789688,"2,088.00"
Department of Health,NHS Sheffield CCG,30/06/2017,C&M-GMS DES UNPLANNED ADMISSIONS,PRC DELEGATED CO-COMMISSIONING,SHARROW LANE MEDICAL CENTRE,17789688,"2,986.83"
Department of Health,NHS Sheffield CCG,30/06/2017,C&M-GMS Global Sum,PRC DELEGATED CO-COMMISSIONING,SHARROW LANE MEDICAL CENTRE,17789688,"21,708.20"
Department of Health,NHS Sheffield CCG,30/06/2017,C&M-GMS MPIG Correction Factor,PRC DELEGATED CO-COMMISSIONING,SHARROW LANE MEDICAL CENTRE,17789688,"2,940.48"
Department of Health,NHS Sheffield CCG,30/06/2017,C&M-GMS PCO Seniority,PRC DELEGATED CO-COMMISSIONING,SHARROW LANE MEDICAL CENTRE,17789688,245.7
Department of Health,NHS Sheffield CCG,30/06/2017,C&M-GMS Prem Notional Rent,PRC DELEGATED CO-COMMISSIONING,SHARROW LANE MEDICAL CENTRE,17789688,"2,658.33"
Department of Health,NHS Sheffield CCG,30/06/2017,C&M-GMS Prem Rates,PRC DELEGATED CO-COMMISSIONING,SHARROW LANE MEDICAL CENTRE,17789688,467
Department of Health,NHS Sheffield CCG,30/06/2017,C&M-GMS Prof Fees Prescribing,PRC DELEGATED CO-COMMISSIONING,SHARROW LANE MEDICAL CENTRE,17789688,57.85
Department of Health,NHS Sheffield CCG,30/06/2017,C&M-GMS QOF Achievement,PRC DELEGATED CO-COMMISSIONING,SHARROW LANE MEDICAL CENTRE,17789688,"12,238.62"
Department of Health,NHS Sheffield CCG,30/06/2017,C&M-GMS QOF Aspiration,PRC DELEGATED CO-COMMISSIONING,SHARROW LANE MEDICAL CENTRE,17789688,"2,727.76"
Department of Health,NHS Sheffield CCG,30/06/2017,C&M-GMS Cost of Drugs -Prescribing,LOCAL ENHANCED SERVICES,SHIREGREEN MEDICAL CENTRE,17789696,"1,153.28"
Department of Health,NHS Sheffield CCG,30/06/2017,C&M-GMS DES Extended Hours Access,PRC DELEGATED CO-COMMISSIONING,SHIREGREEN MEDICAL CENTRE,17789696,"3,676.98"
Department of Health,NHS Sheffield CCG,30/06/2017,C&M-GMS Global Sum,PRC DELEGATED CO-COMMISSIONING,SHIREGREEN MEDICAL CENTRE,17789696,"55,198.74"
Department of Health,NHS Sheffield CCG,30/06/2017,C&M-GMS MPIG Correction Factor,PRC DELEGATED CO-COMMISSIONING,SHIREGREEN MEDICAL CENTRE,17789696,680.53
Department of Health,NHS Sheffield CCG,30/06/2017,C&M-GMS PCO Other,PRC DELEGATED CO-COMMISSIONING,SHIREGREEN MEDICAL CENTRE,17789696,452.6
Department of Health,NHS Sheffield CCG,30/06/2017,C&M-GMS PCO Seniority,PRC DELEGATED CO-COMMISSIONING,SHIREGREEN MEDICAL CENTRE,17789696,"3,152.46"
Department of Health,NHS Sheffield CCG,30/06/2017,C&M-GMS Prem Cost Rent,PRC DELEGATED CO-COMMISSIONING,SHIREGREEN MEDICAL CENTRE,17789696,"1,792.33"
Department of Health,NHS Sheffield CCG,30/06/2017,C&M-GMS Prem Notional Rent,PRC DELEGATED CO-COMMISSIONING,SHIREGREEN MEDICAL CENTRE,17789696,"5,250.00"
Department of Health,NHS Sheffield CCG,30/06/2017,C&M-GMS Prem Rates,PRC DELEGATED CO-COMMISSIONING,SHIREGREEN MEDICAL CENTRE,17789696,"1,877.00"
Department of Health,NHS Sheffield CCG,30/06/2017,C&M-GMS Prem Water Rates,PRC DELEGATED CO-COMMISSIONING,SHIREGREEN MEDICAL CENTRE,17789696,95.53
Department of Health,NHS Sheffield CCG,30/06/2017,C&M-GMS Prof Fees Prescribing,PRC DELEGATED CO-COMMISSIONING,SHIREGREEN MEDICAL CENTRE,17789696,210.57
Department of Health,NHS Sheffield CCG,30/06/2017,C&M-GMS QOF Achievement,PRC DELEGATED CO-COMMISSIONING,SHIREGREEN MEDICAL CENTRE,17789696,"30,679.25"
Department of Health,NHS Sheffield CCG,30/06/2017,C&M-GMS QOF Aspiration,PRC DELEGATED CO-COMMISSIONING,SHIREGREEN MEDICAL CENTRE,17789696,"6,614.14"
Department of Health,NHS Sheffield CCG,30/06/2017,C&M-GMS Cost of Drugs -Prescribing,LOCAL ENHANCED SERVICES,STONECROFT MEDICAL CENTRE,17789698,444.7
Department of Health,NHS Sheffield CCG,30/06/2017,C&M-GMS DES Extended Hours Access,PRC DELEGATED CO-COMMISSIONING,STONECROFT MEDICAL CENTRE,17789698,"1,943.70"
Department of Health,NHS Sheffield CCG,30/06/2017,C&M-GMS DES UNPLANNED ADMISSIONS,PRC DELEGATED CO-COMMISSIONING,STONECROFT MEDICAL CENTRE,17789698,"3,142.37"
Department of Health,NHS Sheffield CCG,30/06/2017,C&M-GMS Global Sum,PRC DELEGATED CO-COMMISSIONING,STONECROFT MEDICAL CENTRE,17789698,"29,772.84"
Department of Health,NHS Sheffield CCG,30/06/2017,C&M-GMS MPIG Correction Factor,PRC DELEGATED CO-COMMISSIONING,STONECROFT MEDICAL CENTRE,17789698,927.38
Department of Health,NHS Sheffield CCG,30/06/2017,C&M-GMS PCO Other,PRC DELEGATED CO-COMMISSIONING,STONECROFT MEDICAL CENTRE,17789698,384.5
Department of Health,NHS Sheffield CCG,30/06/2017,C&M-GMS PCO Seniority,PRC DELEGATED CO-COMMISSIONING,STONECROFT MEDICAL CENTRE,17789698,"2,138.08"
Department of Health,NHS Sheffield CCG,30/06/2017,C&M-GMS Prem Notional Rent,PRC DELEGATED CO-COMMISSIONING,STONECROFT MEDICAL CENTRE,17789698,"2,808.33"
Department of Health,NHS Sheffield CCG,30/06/2017,C&M-GMS Prem Rates,PRC DELEGATED CO-COMMISSIONING,STONECROFT MEDICAL CENTRE,17789698,"1,083.00"
Department of Health,NHS Sheffield CCG,30/06/2017,C&M-GMS Prof Fees Prescribing,PRC DELEGATED CO-COMMISSIONING,STONECROFT MEDICAL CENTRE,17789698,104.13
Department of Health,NHS Sheffield CCG,30/06/2017,C&M-GMS QOF Achievement,PRC DELEGATED CO-COMMISSIONING,STONECROFT MEDICAL CENTRE,17789698,"19,226.28"
Department of Health,NHS Sheffield CCG,30/06/2017,C&M-GMS QOF Aspiration,PRC DELEGATED CO-COMMISSIONING,STONECROFT MEDICAL CENTRE,17789698,"4,224.91"
Department of Health,NHS Sheffield CCG,30/06/2017,C&M-GMS Cost of Drugs -Prescribing,LOCAL ENHANCED SERVICES,STANNINGTON MEDICAL CENTRE,17789700,776.76
Department of Health,NHS Sheffield CCG,30/06/2017,C&M-GMS DES Extended Hours Access,PRC DELEGATED CO-COMMISSIONING,STANNINGTON MEDICAL CENTRE,17789700,"1,490.08"
Department of Health,NHS Sheffield CCG,30/06/2017,C&M-GMS Global Sum,PRC DELEGATED CO-COMMISSIONING,STANNINGTON MEDICAL CENTRE,17789700,"22,593.00"
Department of Health,NHS Sheffield CCG,30/06/2017,C&M-GMS PCO Other,PRC DELEGATED CO-COMMISSIONING,STANNINGTON MEDICAL CENTRE,17789700,384.5
Department of Health,NHS Sheffield CCG,30/06/2017,C&M-GMS Prem Notional Rent,PRC DELEGATED CO-COMMISSIONING,STANNINGTON MEDICAL CENTRE,17789700,"2,533.33"
Department of Health,NHS Sheffield CCG,30/06/2017,C&M-GMS Prem Rates,PRC DELEGATED CO-COMMISSIONING,STANNINGTON MEDICAL CENTRE,17789700,482
Department of Health,NHS Sheffield CCG,30/06/2017,C&M-GMS Prof Fees Prescribing,PRC DELEGATED CO-COMMISSIONING,STANNINGTON MEDICAL CENTRE,17789700,148.09
Department of Health,NHS Sheffield CCG,30/06/2017,C&M-GMS QOF Achievement,PRC DELEGATED CO-COMMISSIONING,STANNINGTON MEDICAL CENTRE,17789700,"13,385.02"
Department of Health,NHS Sheffield CCG,30/06/2017,C&M-GMS QOF Aspiration,PRC DELEGATED CO-COMMISSIONING,STANNINGTON MEDICAL CENTRE,17789700,"3,253.08"
Department of Health,NHS Sheffield CCG,30/06/2017,C&M-GMS Cost of Drugs -Prescribing,LOCAL ENHANCED SERVICES,TOTLEY RISE MEDICAL CENTRE,17789702,259.22
Department of Health,NHS Sheffield CCG,30/06/2017,C&M-GMS Global Sum,PRC DELEGATED CO-COMMISSIONING,TOTLEY RISE MEDICAL CENTRE,17789702,"21,952.89"
Department of Health,NHS Sheffield CCG,30/06/2017,C&M-GMS MPIG Correction Factor,PRC DELEGATED CO-COMMISSIONING,TOTLEY RISE MEDICAL CENTRE,17789702,154.7
Department of Health,NHS Sheffield CCG,30/06/2017,C&M-GMS PCO Other,PRC DELEGATED CO-COMMISSIONING,TOTLEY RISE MEDICAL CENTRE,17789702,384.5
Department of Health,NHS Sheffield CCG,30/06/2017,C&M-GMS PCO Seniority,PRC DELEGATED CO-COMMISSIONING,TOTLEY RISE MEDICAL CENTRE,17789702,"1,792.50"
Department of Health,NHS Sheffield CCG,30/06/2017,C&M-GMS Prem Notional Rent,PRC DELEGATED CO-COMMISSIONING,TOTLEY RISE MEDICAL CENTRE,17789702,"1,491.67"
Department of Health,NHS Sheffield CCG,30/06/2017,C&M-GMS Prem Rates,PRC DELEGATED CO-COMMISSIONING,TOTLEY RISE MEDICAL CENTRE,17789702,136
Department of Health,NHS Sheffield CCG,30/06/2017,C&M-GMS Prof Fees Prescribing,PRC DELEGATED CO-COMMISSIONING,TOTLEY RISE MEDICAL CENTRE,17789702,34.71
Department of Health,NHS Sheffield CCG,30/06/2017,C&M-GMS QOF Achievement,PRC DELEGATED CO-COMMISSIONING,TOTLEY RISE MEDICAL CENTRE,17789702,"10,329.24"
Department of Health,NHS Sheffield CCG,30/06/2017,C&M-GMS QOF Aspiration,PRC DELEGATED CO-COMMISSIONING,TOTLEY RISE MEDICAL CENTRE,17789702,"2,269.92"
Department of Health,NHS Sheffield CCG,30/06/2017,C&M-GMS Cost of Drugs -Prescribing,LOCAL ENHANCED SERVICES,TRAMWAYS MEDICAL CENTRE,17789704,"1,104.16"
Department of Health,NHS Sheffield CCG,30/06/2017,C&M-GMS DES Extended Hours Access,PRC DELEGATED CO-COMMISSIONING,TRAMWAYS MEDICAL CENTRE,17789704,"4,080.25"
Department of Health,NHS Sheffield CCG,30/06/2017,C&M-GMS Global Sum,PRC DELEGATED CO-COMMISSIONING,TRAMWAYS MEDICAL CENTRE,17789704,"58,865.11"
Department of Health,NHS Sheffield CCG,30/06/2017,C&M-GMS PCO Other,PRC DELEGATED CO-COMMISSIONING,TRAMWAYS MEDICAL CENTRE,17789704,452.6
Department of Health,NHS Sheffield CCG,30/06/2017,C&M-GMS PCO Seniority,PRC DELEGATED CO-COMMISSIONING,TRAMWAYS MEDICAL CENTRE,17789704,"5,792.20"
Department of Health,NHS Sheffield CCG,30/06/2017,C&M-GMS Prem Cost Rent,PRC DELEGATED CO-COMMISSIONING,TRAMWAYS MEDICAL CENTRE,17789704,"4,012.75"
Department of Health,NHS Sheffield CCG,30/06/2017,C&M-GMS Prem Rates,PRC DELEGATED CO-COMMISSIONING,TRAMWAYS MEDICAL CENTRE,17789704,889
Department of Health,NHS Sheffield CCG,30/06/2017,C&M-GMS Prof Fees Prescribing,PRC DELEGATED CO-COMMISSIONING,TRAMWAYS MEDICAL CENTRE,17789704,175.86
Department of Health,NHS Sheffield CCG,30/06/2017,C&M-GMS QOF Achievement,PRC DELEGATED CO-COMMISSIONING,TRAMWAYS MEDICAL CENTRE,17789704,"26,884.99"
Department of Health,NHS Sheffield CCG,30/06/2017,C&M-GMS QOF Aspiration,PRC DELEGATED CO-COMMISSIONING,TRAMWAYS MEDICAL CENTRE,17789704,"6,336.58"
Department of Health,NHS Sheffield CCG,30/06/2017,C&M-GMS Cost of Drugs -Prescribing,LOCAL ENHANCED SERVICES,UPPERTHORPE MEDICAL CENTRE,17789707,"2,382.05"
Department of Health,NHS Sheffield CCG,30/06/2017,C&M-GMS DES Extended Hours Access,PRC DELEGATED CO-COMMISSIONING,UPPERTHORPE MEDICAL CENTRE,17789707,"5,326.65"
Department of Health,NHS Sheffield CCG,30/06/2017,C&M-GMS Global Sum,PRC DELEGATED CO-COMMISSIONING,UPPERTHORPE MEDICAL CENTRE,17789707,"75,364.18"
Department of Health,NHS Sheffield CCG,30/06/2017,C&M-GMS MPIG Correction Factor,PRC DELEGATED CO-COMMISSIONING,UPPERTHORPE MEDICAL CENTRE,17789707,"1,988.60"
Department of Health,NHS Sheffield CCG,30/06/2017,C&M-GMS PCO Seniority,PRC DELEGATED CO-COMMISSIONING,UPPERTHORPE MEDICAL CENTRE,17789707,"4,221.60"
Department of Health,NHS Sheffield CCG,30/06/2017,C&M-GMS Prem Actual Rent,PRC DELEGATED CO-COMMISSIONING,UPPERTHORPE MEDICAL CENTRE,17789707,"29,475.00"
Department of Health,NHS Sheffield CCG,30/06/2017,C&M-GMS Prem Notional Rent,PRC DELEGATED CO-COMMISSIONING,UPPERTHORPE MEDICAL CENTRE,17789707,"2,497.83"
Department of Health,NHS Sheffield CCG,30/06/2017,C&M-GMS Prem Rates,PRC DELEGATED CO-COMMISSIONING,UPPERTHORPE MEDICAL CENTRE,17789707,"2,044.00"
Department of Health,NHS Sheffield CCG,30/06/2017,C&M-GMS Prof Fees Prescribing,PRC DELEGATED CO-COMMISSIONING,UPPERTHORPE MEDICAL CENTRE,17789707,226.77
Department of Health,NHS Sheffield CCG,30/06/2017,C&M-GMS QOF Achievement,PRC DELEGATED CO-COMMISSIONING,UPPERTHORPE MEDICAL CENTRE,17789707,"40,439.98"
Department of Health,NHS Sheffield CCG,30/06/2017,C&M-GMS QOF Aspiration,PRC DELEGATED CO-COMMISSIONING,UPPERTHORPE MEDICAL CENTRE,17789707,"9,309.14"
Department of Health,NHS Sheffield CCG,30/06/2017,C&M-GMS Cost of Drugs -Prescribing,LOCAL ENHANCED SERVICES,WHITE HOUSE SURGERY SHEFFIELD,17789711,834.89
Department of Health,NHS Sheffield CCG,30/06/2017,C&M-GMS DES Extended Hours Access,PRC DELEGATED CO-COMMISSIONING,WHITE HOUSE SURGERY SHEFFIELD,17789711,"2,994.88"
Department of Health,NHS Sheffield CCG,30/06/2017,C&M-GMS Global Sum,PRC DELEGATED CO-COMMISSIONING,WHITE HOUSE SURGERY SHEFFIELD,17789711,"47,012.81"
Department of Health,NHS Sheffield CCG,30/06/2017,C&M-GMS MPIG Correction Factor,PRC DELEGATED CO-COMMISSIONING,WHITE HOUSE SURGERY SHEFFIELD,17789711,"2,086.94"
Department of Health,NHS Sheffield CCG,30/06/2017,C&M-GMS PCO Seniority,PRC DELEGATED CO-COMMISSIONING,WHITE HOUSE SURGERY SHEFFIELD,17789711,"2,640.73"
Department of Health,NHS Sheffield CCG,30/06/2017,C&M-GMS Prem Notional Rent,PRC DELEGATED CO-COMMISSIONING,WHITE HOUSE SURGERY SHEFFIELD,17789711,"9,104.17"
Department of Health,NHS Sheffield CCG,30/06/2017,C&M-GMS Prem Rates,PRC DELEGATED CO-COMMISSIONING,WHITE HOUSE SURGERY SHEFFIELD,17789711,"2,013.00"
Department of Health,NHS Sheffield CCG,30/06/2017,C&M-GMS Prof Fees Prescribing,PRC DELEGATED CO-COMMISSIONING,WHITE HOUSE SURGERY SHEFFIELD,17789711,201.31
Department of Health,NHS Sheffield CCG,30/06/2017,C&M-GMS QOF Achievement,PRC DELEGATED CO-COMMISSIONING,WHITE HOUSE SURGERY SHEFFIELD,17789711,"36,529.28"
Department of Health,NHS Sheffield CCG,30/06/2017,C&M-GMS QOF Aspiration,PRC DELEGATED CO-COMMISSIONING,WHITE HOUSE SURGERY SHEFFIELD,17789711,"6,083.99"
Department of Health,NHS Sheffield CCG,30/06/2017,C&M-GMS GP Statutory Levy,PRC DELEGATED CO-COMMISSIONING,FLOWERS HEALTH CENTRE,17789715,-143.49
Department of Health,NHS Sheffield CCG,30/06/2017,C&M-GMS QOF Aspiration,PRC DELEGATED CO-COMMISSIONING,FLOWERS HEALTH CENTRE,17789715,-104.77
Department of Health,NHS Sheffield CCG,30/06/2017,C&M-GMS Voluntary Levy,PRC DELEGATED CO-COMMISSIONING,FLOWERS HEALTH CENTRE,17789715,-23.92
Department of Health,NHS Sheffield CCG,30/06/2017,C&M-GMS Cost of Drugs -Prescribing,LOCAL ENHANCED SERVICES,FLOWERS HEALTH CENTRE,17789716,"1,024.95"
Department of Health,NHS Sheffield CCG,30/06/2017,C&M-GMS DES UNPLANNED ADMISSIONS,PRC DELEGATED CO-COMMISSIONING,FLOWERS HEALTH CENTRE,17789716,"3,565.10"
Department of Health,NHS Sheffield CCG,30/06/2017,C&M-GMS Global Sum,PRC DELEGATED CO-COMMISSIONING,FLOWERS HEALTH CENTRE,17789716,"33,108.84"
Department of Health,NHS Sheffield CCG,30/06/2017,C&M-GMS MPIG Correction Factor,PRC DELEGATED CO-COMMISSIONING,FLOWERS HEALTH CENTRE,17789716,"2,214.46"
Department of Health,NHS Sheffield CCG,30/06/2017,C&M-GMS PCO Seniority,PRC DELEGATED CO-COMMISSIONING,FLOWERS HEALTH CENTRE,17789716,"1,437.18"
Department of Health,NHS Sheffield CCG,30/06/2017,C&M-GMS Prem Healthcentre Rent,PRC DELEGATED CO-COMMISSIONING,FLOWERS HEALTH CENTRE,17789716,"32,996.55"
Department of Health,NHS Sheffield CCG,30/06/2017,C&M-GMS Prof Fees Prescribing,PRC DELEGATED CO-COMMISSIONING,FLOWERS HEALTH CENTRE,17789716,233.72
Department of Health,NHS Sheffield CCG,30/06/2017,C&M-GMS QOF Achievement,PRC DELEGATED CO-COMMISSIONING,FLOWERS HEALTH CENTRE,17789716,"22,887.99"
Department of Health,NHS Sheffield CCG,30/06/2017,C&M-GMS QOF Aspiration,PRC DELEGATED CO-COMMISSIONING,FLOWERS HEALTH CENTRE,17789716,"4,334.56"
Department of Health,NHS Sheffield CCG,30/06/2017,C&M-GMS Cost of Drugs -Prescribing,LOCAL ENHANCED SERVICES,ECCLESFIELD GROUP PRACTICE,17810079,"2,031.64"
Department of Health,NHS Sheffield CCG,30/06/2017,C&M-GMS DES Extended Hours Access,PRC DELEGATED CO-COMMISSIONING,ECCLESFIELD GROUP PRACTICE,17810079,"3,814.73"
Department of Health,NHS Sheffield CCG,30/06/2017,C&M-GMS DES UNPLANNED ADMISSIONS,PRC DELEGATED CO-COMMISSIONING,ECCLESFIELD GROUP PRACTICE,17810079,"6,006.77"
Department of Health,NHS Sheffield CCG,30/06/2017,C&M-GMS Global Sum,PRC DELEGATED CO-COMMISSIONING,ECCLESFIELD GROUP PRACTICE,17810079,"62,841.58"
Department of Health,NHS Sheffield CCG,30/06/2017,C&M-GMS PCO Locum Adop/Pat/Mat,PRC DELEGATED CO-COMMISSIONING,ECCLESFIELD GROUP PRACTICE,17810079,"7,088.77"
Department of Health,NHS Sheffield CCG,30/06/2017,C&M-GMS PCO Other,PRC DELEGATED CO-COMMISSIONING,ECCLESFIELD GROUP PRACTICE,17810079,452.6
Department of Health,NHS Sheffield CCG,30/06/2017,C&M-GMS PCO Seniority,PRC DELEGATED CO-COMMISSIONING,ECCLESFIELD GROUP PRACTICE,17810079,"3,461.30"
Department of Health,NHS Sheffield CCG,30/06/2017,C&M-GMS Prem Notional Rent,PRC DELEGATED CO-COMMISSIONING,ECCLESFIELD GROUP PRACTICE,17810079,"7,362.31"
Department of Health,NHS Sheffield CCG,30/06/2017,C&M-GMS Prem Rates,PRC DELEGATED CO-COMMISSIONING,ECCLESFIELD GROUP PRACTICE,17810079,"6,171.84"
Department of Health,NHS Sheffield CCG,30/06/2017,C&M-GMS Prof Fees Prescribing,PRC DELEGATED CO-COMMISSIONING,ECCLESFIELD GROUP PRACTICE,17810079,240.66
Department of Health,NHS Sheffield CCG,30/06/2017,C&M-GMS QOF Achievement,PRC DELEGATED CO-COMMISSIONING,ECCLESFIELD GROUP PRACTICE,17810079,"37,634.18"
Department of Health,NHS Sheffield CCG,30/06/2017,C&M-GMS QOF Aspiration,PRC DELEGATED CO-COMMISSIONING,ECCLESFIELD GROUP PRACTICE,17810079,"10,399.72"
Department of Health,NHS Sheffield CCG,30/06/2017,C&M-GMS Cost of Drugs -Prescribing,LOCAL ENHANCED SERVICES,FAR LANE MEDICAL CENTRE,17810080,654.69
Department of Health,NHS Sheffield CCG,30/06/2017,C&M-GMS DES Learn Dsblty Hlth Chk,PRC DELEGATED CO-COMMISSIONING,FAR LANE MEDICAL CENTRE,17810080,696
Department of Health,NHS Sheffield CCG,30/06/2017,C&M-GMS Global Sum,PRC DELEGATED CO-COMMISSIONING,FAR LANE MEDICAL CENTRE,17810080,"53,622.99"
Department of Health,NHS Sheffield CCG,30/06/2017,C&M-GMS PCO Other,PRC DELEGATED CO-COMMISSIONING,FAR LANE MEDICAL CENTRE,17810080,"1,357.80"
Department of Health,NHS Sheffield CCG,30/06/2017,C&M-GMS PCO Seniority,PRC DELEGATED CO-COMMISSIONING,FAR LANE MEDICAL CENTRE,17810080,"4,880.65"
Department of Health,NHS Sheffield CCG,30/06/2017,C&M-GMS Prem Notional Rent,PRC DELEGATED CO-COMMISSIONING,FAR LANE MEDICAL CENTRE,17810080,"3,462.50"
Department of Health,NHS Sheffield CCG,30/06/2017,C&M-GMS Prem Rates,PRC DELEGATED CO-COMMISSIONING,FAR LANE MEDICAL CENTRE,17810080,"3,157.23"
Department of Health,NHS Sheffield CCG,30/06/2017,C&M-GMS Prof Fees Prescribing,PRC DELEGATED CO-COMMISSIONING,FAR LANE MEDICAL CENTRE,17810080,168.93
Department of Health,NHS Sheffield CCG,30/06/2017,C&M-GMS QOF Achievement,PRC DELEGATED CO-COMMISSIONING,FAR LANE MEDICAL CENTRE,17810080,"29,654.57"
Department of Health,NHS Sheffield CCG,30/06/2017,C&M-GMS QOF Aspiration,PRC DELEGATED CO-COMMISSIONING,FAR LANE MEDICAL CENTRE,17810080,"6,224.50"
Department of Health,NHS Sheffield CCG,30/06/2017,C&M-GMS Cost of Drugs -Dispensing,LOCAL ENHANCED SERVICES,OUGHTIBRIDGE SURGERY,17810084,"-14,889.20"
Department of Health,NHS Sheffield CCG,30/06/2017,C&M-GMS GP Statutory Levy,PRC DELEGATED CO-COMMISSIONING,OUGHTIBRIDGE SURGERY,17810084,-175.59
Department of Health,NHS Sheffield CCG,30/06/2017,C&M-GMS PrscChrgsCll&RmttdbyGPCntra,PRC DELEGATED CO-COMMISSIONING,OUGHTIBRIDGE SURGERY,17810084,-601.4
Department of Health,NHS Sheffield CCG,30/06/2017,C&M-GMS QOF Aspiration,PRC DELEGATED CO-COMMISSIONING,OUGHTIBRIDGE SURGERY,17810084,-392.91
Department of Health,NHS Sheffield CCG,30/06/2017,C&M-GMS Voluntary Levy,PRC DELEGATED CO-COMMISSIONING,OUGHTIBRIDGE SURGERY,17810084,-29.27
Department of Health,NHS Sheffield CCG,30/06/2017,C&M-GMS Cost of Drugs -Dispensing,LOCAL ENHANCED SERVICES,OUGHTIBRIDGE SURGERY,17810085,"31,175.08"
Department of Health,NHS Sheffield CCG,30/06/2017,C&M-GMS DES Extended Hours Access,PRC DELEGATED CO-COMMISSIONING,OUGHTIBRIDGE SURGERY,17810085,"2,780.18"
Department of Health,NHS Sheffield CCG,30/06/2017,C&M-GMS Dispensing Quality Sch,PRC DELEGATED CO-COMMISSIONING,OUGHTIBRIDGE SURGERY,17810085,"3,108.90"
Department of Health,NHS Sheffield CCG,30/06/2017,C&M-GMS Global Sum,PRC DELEGATED CO-COMMISSIONING,OUGHTIBRIDGE SURGERY,17810085,"41,337.08"
Department of Health,NHS Sheffield CCG,30/06/2017,C&M-GMS PCO Seniority,PRC DELEGATED CO-COMMISSIONING,OUGHTIBRIDGE SURGERY,17810085,"1,458.54"
Department of Health,NHS Sheffield CCG,30/06/2017,C&M-GMS Prem Notional Rent,PRC DELEGATED CO-COMMISSIONING,OUGHTIBRIDGE SURGERY,17810085,"3,888.33"
Department of Health,NHS Sheffield CCG,30/06/2017,C&M-GMS Prof Fees Dispensing,PRC DELEGATED CO-COMMISSIONING,OUGHTIBRIDGE SURGERY,17810085,"4,458.03"
Department of Health,NHS Sheffield CCG,30/06/2017,C&M-GMS PrscrptnChrgsColl&RmttdbyGP,LOCAL ENHANCED SERVICES,OUGHTIBRIDGE SURGERY,17810085,601.4
Department of Health,NHS Sheffield CCG,30/06/2017,C&M-GMS QOF Achievement,PRC DELEGATED CO-COMMISSIONING,OUGHTIBRIDGE SURGERY,17810085,"19,858.02"
Department of Health,NHS Sheffield CCG,30/06/2017,C&M-GMS QOF Aspiration,PRC DELEGATED CO-COMMISSIONING,OUGHTIBRIDGE SURGERY,17810085,"4,693.88"
Department of Health,NHS Sheffield CCG,30/06/2017,C&M-GMS Cost of Drugs -Prescribing,LOCAL ENHANCED SERVICES,WALKLEY HOUSE MEDICAL CENTRE,17810086,"1,121.27"
Department of Health,NHS Sheffield CCG,30/06/2017,C&M-GMS Global Sum,PRC DELEGATED CO-COMMISSIONING,WALKLEY HOUSE MEDICAL CENTRE,17810086,"77,625.48"
Department of Health,NHS Sheffield CCG,30/06/2017,C&M-GMS PCO Seniority,PRC DELEGATED CO-COMMISSIONING,WALKLEY HOUSE MEDICAL CENTRE,17810086,"4,938.98"
Department of Health,NHS Sheffield CCG,30/06/2017,C&M-GMS Prem Notional Rent,PRC DELEGATED CO-COMMISSIONING,WALKLEY HOUSE MEDICAL CENTRE,17810086,"5,581.34"
Department of Health,NHS Sheffield CCG,30/06/2017,C&M-GMS Prof Fees Prescribing,PRC DELEGATED CO-COMMISSIONING,WALKLEY HOUSE MEDICAL CENTRE,17810086,143.47
Department of Health,NHS Sheffield CCG,30/06/2017,C&M-GMS QOF Achievement,PRC DELEGATED CO-COMMISSIONING,WALKLEY HOUSE MEDICAL CENTRE,17810086,"35,875.33"
Department of Health,NHS Sheffield CCG,30/06/2017,C&M-GMS QOF Aspiration,PRC DELEGATED CO-COMMISSIONING,WALKLEY HOUSE MEDICAL CENTRE,17810086,"8,922.54"
Department of Health,NHS Sheffield CCG,30/06/2017,Cont Care-Funded Nursing Care Allow,FUNDED NURSING CARE,ULTIMA CARE CENTRES (NO1) LTD,17820081,"29,990.97"
Department of Health,NHS Sheffield CCG,30/06/2017,NHS Recbles <1Yr- CHC Risk Pool Con,CHC ADULT FULLY FUNDED,HUGH JAMES INVOLEGAL LLP,17820159,"29,285.45"
Department of Health,NHS Sheffield CCG,30/06/2017,Hcare Srv Rec Fdtn Trust-Contract Baseline,ACUTE COMMISSIONING,CHESTERFIELD ROYAL HOSPITAL NHS FOUNDATION TRUST,17834787,"33,590.00"
Department of Health,NHS Sheffield CCG,30/06/2017,Cont Care-Physical Disab (65+),CHC ADULT FULLY FUNDED,BC SHEFFIELD LTD,17850513,"-34,315.71"
Department of Health,NHS Sheffield CCG,30/06/2017,Charges from CSU,BUSINESS INFORMATICS,NHS NORTH OF ENGLAND CSU,17850569,"30,083.00"
Department of Health,NHS Sheffield CCG,30/06/2017,Cont Care-Physical Disab (65+),CHC ADULT FULLY FUNDED,BC SHEFFIELD LTD,17855393,"34,315.71"
Department of Health,NHS Sheffield CCG,30/06/2017,C&M-APMS DES Extended Hours Access,LOCAL ENHANCED SERVICES,PRIMARY CARE SHEFFIELD LTD,17869445,"579,870.34"
Department of Health,NHS Sheffield CCG,30/06/2017,Clinical&Medical-Othe Public Sector,CHILD AND ADOLESCENT MENTAL HEALTH,SHEFFIELD CITY COUNCIL,17869452,"239,476.00"
,,,,,,,"59,220,990.54"
